{"text_format":"3","workbook":"xlsx","n_sheets":4,"sheets":["ESF","ERI","EFE","ECP"],"not_rendered":{"macros":1},"read":"whole","date_system":"1900"}

{"sheet":"ESF","index":0,"n_rows":378,"n_cols":4,"rows_kept":378,"merged":[[0,1,0,3]]}
[null,"ESTADO DE SITUACIÓN FINANCIERA"]
[null,"CODIGO","NOMBRE DE LA CUENTA","VALOR"]
[null,1,"ACTIVO",{"$f":"+D4+D164","v":{"v":0,"d":"0.00"}}]
[null,101,"ACTIVO CORRIENTE",{"$f":"+D5+D9+D138+D152+D157+D161+D162+D163","v":{"v":0,"d":"0.00"}}]
[null,10101,"EFECTIVO Y EQUIVALENTES DE EFECTIVO",{"$f":"SUM(D6:D8)","v":{"v":0,"d":"0.00"}}]
[null,1010101,"CAJA"]
[null,1010102,"INSTITUCIONES FINANCIERAS PÚBLICAS"]
[null,1010103,"INSTITUCIONES FINANCIERAS PRIVADAS"]
[null,10102,"ACTIVOS FINANCIEROS",{"$f":"+D10+D47+D79+D104+D108+D132+D137","v":{"v":0,"d":"0.00"}}]
[null,1010201,"ACTIVOS FINANCIEROS A VALOR RAZONABLE CON CAMBIOS EN RESULTADOS",{"$f":"+D11+D18+D42","v":{"v":0,"d":"0.00"}}]
[null,101020101,"RENTA VARIABLE",{"$f":"SUM(D12:D17)","v":{"v":0,"d":"0.00"}}]
[null,10102010101,"ACCIONES Y PARTICIPACIONES"]
[null,10102010102,"CUOTAS DE FONDOS COLECTIVOS"]
[null,10102010103,"VALORES DE  TITULARIZACIÓN DE PARTICIPACIÓN"]
[null,10102010104,"UNIDADES DE PARTICIPACIÓN"]
[null,10102010105,"INVERSIONES EN EL EXTERIOR"]
[null,10102010106,"OTROS"]
[null,101020102,"RENTA FIJA",{"$f":"SUM(D19:D41)","v":{"v":0,"d":"0.00"}}]
[null,10102010201,"AVALES"]
[null,10102010202,"BONOS DEL ESTADO"]
[null,10102010203,"BONOS DE PRENDA"]
[null,10102010204,"CÉDULAS HIPOTECARIAS"]
[null,10102010205,"CERTIFICADOS FINANCIEROS"]
[null,10102010206,"CERTIFICADOS DE INVERSIÓN"]
[null,10102010207,"CERTIFICADOS DE TESORERÍA"]
[null,10102010208,"CERTIFICADOS DE DEPÓSITO"]
[null,10102010209,"CUPONES"]
[null,10102010210,"DEPÓSITOS A PLAZO"]
[null,10102010211,"LETRAS DE CAMBIO"]
[null,10102010212,"NOTAS DE CRÉDITO"]
[null,10102010213,"OBLIGACIONES"]
[null,10102010214,"FACTURAS COMERCIALES NEGOCIABLES"]
[null,10102010215,"OVERNIGHTS"]
[null,10102010216,"OBLIGACIONES CONVERTIBLES EN ACCIONES"]
[null,10102010217,"PAPEL COMERCIAL"]
[null,10102010218,"PAGARÉS"]
[null,10102010219,"PÓLIZAS DE ACUMULACIÓN"]
[null,10102010220,"TÍTULOS DEL BANCO CENTRAL"]
[null,10102010221,"VALORES DE TITULARIZACIÓN"]
[null,10102010222,"INVERSIONES EN EL EXTERIOR"]
[null,10102010223,"OTROS"]
[null,101020103,"DERIVADOS",{"$f":"SUM(D43:D46)","v":{"v":0,"d":"0.00"}}]
[null,10102010301,"FORWARD"]
[null,10102010302,"FUTUROS"]
[null,10102010303,"OPCIONES"]
[null,10102010304,"OTROS"]
[null,1010202,"ACTIVOS FINANCIEROS A VALOR RAZONABLE CON CAMBIOS EN OTRO RESULTADO INTEGRAL",{"$f":"+D48+D55","v":{"v":0,"d":"0.00"}}]
[null,101020201,"RENTA VARIABLE",{"$f":"SUM(D49:D54)","v":{"v":0,"d":"0.00"}}]
[null,10102020101,"ACCIONES Y PARTICIPACIONES"]
[null,10102020102,"CUOTAS DE FONDOS COLECTIVOS"]
[null,10102020103,"UNIDADES DE PARTICIPACIÓN"]
[null,10102020104,"VALORES DE  TITULARIZACIÓN DE PARTICIPACIÓN"]
[null,10102020105,"INVERSIONES EN EL EXTERIOR"]
[null,10102020106,"OTROS"]
[null,101020202,"RENTA FIJA",{"$f":"SUM(D56:D78)","v":{"v":0,"d":"0.00"}}]
[null,10102020201,"AVALES"]
[null,10102020202,"BONOS DEL ESTADO"]
[null,10102020203,"BONOS DE PRENDA"]
[null,10102020204,"CÉDULAS HIPOTECARIAS"]
[null,10102020205,"CERTIFICADOS FINANCIEROS"]
[null,10102020206,"CERTIFICADOS DE INVERSIÓN"]
[null,10102020207,"CERTIFICADOS DE TESORERÍA"]
[null,10102020208,"CERTIFICADOS DE DEPÓSITO"]
[null,10102020209,"CUPONES"]
[null,10102020210,"DEPÓSITOS A PLAZO"]
[null,10102020211,"LETRAS DE CAMBIO"]
[null,10102020212,"NOTAS DE CRÉDITO"]
[null,10102020213,"OBLIGACIONES"]
[null,10102020214,"FACTURAS COMERCIALES NEGOCIABLES"]
[null,10102020215,"OVERNIGHTS"]
[null,10102020216,"OBLIGACIONES CONVERTIBLES EN ACCIONES"]
[null,10102020217,"PAPEL COMERCIAL"]
[null,10102020218,"PAGARÉS"]
[null,10102020219,"PÓLIZAS DE ACUMULACIÓN"]
[null,10102020220,"TÍTULOS DEL BANCO CENTRAL"]
[null,10102020221,"VALORES DE TITULARIZACIÓN"]
[null,10102020222,"INVERSIONES EN EL EXTERIOR"]
[null,10102020223,"OTROS"]
[null,1010203,"ACTIVOS FINANCIEROS AL COSTO AMORTIZADO",{"$f":"+D80","v":{"v":0,"d":"0.00"}}]
[null,101020302,"RENTA FIJA",{"$f":"SUM(D81:D103)","v":{"v":0,"d":"0.00"}}]
[null,10102030201,"AVALES"]
[null,10102030202,"BONOS DEL ESTADO"]
[null,10102030203,"BONOS DE PRENDA"]
[null,10102030204,"CÉDULAS HIPOTECARIAS"]
[null,10102030205,"CERTIFICADOS FINANCIEROS"]
[null,10102030206,"CERTIFICADOS DE INVERSIÓN"]
[null,10102030207,"CERTIFICADOS DE TESORERÍA"]
[null,10102030208,"CERTIFICADOS DE DEPÓSITO"]
[null,10102030209,"CUPONES"]
[null,10102030210,"DEPÓSITOS A PLAZO"]
[null,10102030211,"LETRAS DE CAMBIO"]
[null,10102030212,"NOTAS DE CRÉDITO"]
[null,10102030213,"OBLIGACIONES"]
[null,10102030214,"FACTURAS COMERCIALES NEGOCIABLES"]
[null,10102030215,"OVERNIGHTS"]
[null,10102030216,"OBLIGACIONES CONVERTIBLES EN ACCIONES"]
[null,10102030217,"PAPEL COMERCIAL"]
[null,10102030218,"PAGARÉS"]
[null,10102030219,"PÓLIZAS DE ACUMULACIÓN"]
[null,10102030220,"TÍTULOS DEL BANCO CENTRAL"]
[null,10102030221,"VALORES DE TITULARIZACIÓN"]
[null,10102030222,"INVERSIONES EN EL EXTERIOR"]
[null,10102030223,"OTROS"]
[null,1010204,"PROVISIÓN POR DETERIORO DE ACTIVOS FINANCIEROS",{"$f":"SUM(D105:D107)","v":{"v":0,"d":"0.00"}}]
[null,101020401,"ACTIVOS FINANCIEROS A VALOR RAZONABLE CON CAMBIOS EN RESULTADOS"]
[null,101020402,"ACTIVOS FINANCIEROS AL COSTO AMORTIZADO"]
[null,101020403,"ACTIVOS FINANCIEROS A VALOR RAZONABLE CON CAMBIOS EN OTRO RESULTADO INTEGRAL"]
[null,1010205,"DEUDORES COMERCIALES Y OTRAS CUENTAS POR COBRAR NO RELACIONADOS",{"$f":"+D109+D112","v":{"v":0,"d":"0.00"}}]
[null,101020501,"DE ACTIVIDADES ORDINARIAS QUE GENEREN INTERESES",{"$f":"SUM(D110:D111)","v":{"v":0,"d":"0.00"}}]
[null,10102050101,"CUENTAS Y DOCUMENTOS A COBRAR  A CLIENTES"]
[null,10102050102,"CUENTAS Y DOCUMENTOS A COBRAR  A TERCEROS"]
[null,101020502,"DE ACTIVIDADES ORDINARIAS QUE NO GENEREN INTERESES",{"$f":"SUM(D113:D131)","v":{"v":0,"d":"0.00"}}]
[null,10102050201,"CUENTAS Y DOCUMENTOS A COBRAR  A CLIENTES"]
[null,10102050202,"CUENTAS Y DOCUMENTOS A COBRAR  A TERCEROS"]
[null,10102050203,"CUENTAS POR COBRAR AL ORIGINADOR"]
[null,10102050204,"COMISIONES POR OPERACIONES  BURSÁTILES"]
[null,10102050207,"CONTRATO DE UNDERWRITING"]
[null,10102050208,"POR  ADMINISTRACIÓN Y MANEJO DE PORTAFOLIOS DE TERCEROS"]
[null,10102050209,"POR ADMINISTRACIÓN Y MANEJO DE FONDOS ADMINISTRADOS"]
[null,10102050210,"POR ADMINISTRACIÓN Y MANEJO DE NEGOCIOS FIDUCIARIOS"]
[null,10102050211,"POR CUSTODIA Y CONSERVACIÓN DE VALORES MATERIALIZADOS"]
[null,10102050212,"POR CUSTODIA Y CONSERVACIÓN DE VALORES DESMATERIALIZADOS"]
[null,10102050213,"POR MANEJO DE LIBRO DE ACCIONES Y ACCIONISTAS"]
[null,10102050214,"POR ASESORÍA"]
[null,10102050215,"DIVIDENDOS POR COBRAR"]
[null,10102050216,"INTERESES POR COBRAR"]
[null,10102050217,"DEUDORES POR INTERMEDIACIÓN DE VALORES"]
[null,10102050218,"ANTICIPO A COMITENTES"]
[null,10102050219,"ANTICIPO A CONSTRUCTOR POR AVANCE DE OBRA"]
[null,10102050220,"DERECHOS POR COMPROMISO DE RECOMPRA"]
[null,10102050221,"OTRAS CUENTAS POR COBRAR NO RELACIONADAS"]
[null,1010206,"DOCUMENTOS Y CUENTAS POR COBRAR RELACIONADOS",{"$f":"SUM(D133:D136)","v":{"v":0,"d":"0.00"}}]
[null,101020601,"POR COBRAR A ACCIONISTAS"]
[null,101020602,"POR COBRAR A COMPAÑÍAS RELACIONADAS"]
[null,101020603,"POR COBRAR A CLIENTES"]
[null,101020604,"OTRAS CUENTAS POR COBRAR RELACIONADAS"]
[null,1010207,"PROVISIÓN POR CUENTAS INCOBRABLES Y DETERIORO"]
[null,10103,"INVENTARIOS",{"$f":"SUM(D139:D151)","v":{"v":0,"d":"0.00"}}]
[null,1010301,"INVENTARIOS DE MATERIA PRIMA"]
[null,1010302,"INVENTARIOS DE PRODUCTOS EN PROCESO"]
[null,1010303,"INVENTARIOS DE SUMINISTROS O MATERIALES A SER CONSUMIDOS EN EL PROCESO DE PRODUCCION"]
[null,1010304,"INVENTARIOS DE SUMINISTROS O MATERIALES A SER CONSUMIDOS EN LA PRESTACION DEL SERVICIO"]
[null,1010305,"INVENTARIOS DE PROD. TERM. Y MERCAD. EN ALMACÉN - PRODUCIDO POR LA COMPAÑÍA"]
[null,1010306,"INVENTARIOS DE PROD. TERM. Y MERCAD. EN ALMACÉN - COMPRADO A  TERCEROS"]
[null,1010307,"MERCADERÍAS EN TRÁNSITO"]
[null,1010308,"OBRAS EN CONSTRUCCION"]
[null,1010309,"OBRAS TERMINADAS"]
[null,1010310,"MATERIALES O BIENES PARA LA CONSTRUCCION"]
[null,1010311,"INVENTARIOS REPUESTOS, HERRAMIENTAS Y ACCESORIOS"]
[null,1010312,"OTROS INVENTARIOS"]
[null,1010313,"(-) PROVISIÓN POR VALOR NETO DE REALIZACIÓN Y OTRAS PERDIDAS EN INVENTARIO"]
[null,10104,"SERVICIOS Y OTROS PAGOS ANTICIPADOS",{"$f":"SUM(D153:D156)","v":{"v":0,"d":"0.00"}}]
[null,1010401,"SEGUROS PAGADOS POR ANTICIPADO"]
[null,1010402,"ARRIENDOS PAGADOS POR ANTICIPADO"]
[null,1010403,"ANTICIPOS A PROVEEDORES"]
[null,1010404,"OTROS ANTICIPOS ENTREGADOS"]
[null,10105,"ACTIVOS POR IMPUESTOS CORRIENTES",{"$f":"SUM(D158:D160)","v":{"v":0,"d":"0.00"}}]
[null,1010501,"CRÉDITO TRIBUTARIO A FAVOR DE LA EMPRESA (IVA)"]
[null,1010502,"CRÉDITO TRIBUTARIO A FAVOR DE LA EMPRESA ( I. R.)"]
[null,1010503,"ANTICIPO DE IMPUESTO A LA RENTA"]
[null,10106,"ACTIVOS CORRIENTES MANTENIDOS PARA LA VENTA Y OPERACIONES DISCONTINUADAS"]
[null,10107,"CONSTRUCCIONES EN PROCESO (NIC 11 Y SECC.23 PYMES)"]
[null,10108,"OTROS ACTIVOS CORRIENTES"]
[null,102,"ACTIVOS NO CORRIENTES",{"$f":"+D165+D183+D192+D199+D207+D208+D215+D219+D230+D234","v":{"v":0,"d":"0.00"}}]
[null,10201,"PROPIEDAD, PLANTA Y EQUIPO",{"$f":"SUM(D166:D179)","v":{"v":0,"d":"0.00"}}]
[null,1020101,"TERRENOS"]
[null,1020102,"EDIFICIOS"]
[null,1020103,"CONSTRUCCIONES EN CURSO"]
[null,1020104,"INSTALACIONES"]
[null,1020105,"MUEBLES Y ENSERES"]
[null,1020106,"MAQUINARIA Y EQUIPO"]
[null,1020107,"NAVES, AEREONAVES, BARCAZAS Y SIMILARES"]
[null,1020108,"EQUIPO DE COMPUTACIÓN"]
[null,1020109,"VEHÍCULOS, EQUIPOS DE TRASPORTE Y EQUIPO CAMINERO MÓVIL"]
[null,1020110,"OTROS PROPIEDADES, PLANTA Y EQUIPO"]
[null,1020111,"REPUESTOS Y HERRAMIENTAS"]
[null,1020112,"(-) DEPRECIACIÓN ACUMULADA PROPIEDADES, PLANTA Y EQUIPO"]
[null,1020113,"(-) DETERIORO  ACUMULADO DE PROPIEDADES, PLANTA Y EQUIPO"]
[null,1020114,"ACTIVOS DE EXPLORACION Y EXPLOTACION",{"$f":"SUM(D180:D182)","v":{"v":0,"d":"0.00"}}]
[null,102011401,"ACTIVOS DE EXPLORACION Y EXPLOTACION"]
[null,102011402,"(-) AMORTIZACION ACUMULADA DE ACTIVOS DE EXPLORACIÓN Y EXPLOTACIÓN"]
[null,102011403,"(-) DETERIORO  ACUMULADO DE ACTIVOS DE EXPLORACIÓN Y EXPLOTACIÓN"]
[null,10202,"PROPIEDADES DE INVERSIÓN",{"$f":"+D184+D187+D190+D191","v":{"v":0,"d":"0.00"}}]
[null,1020201,"TERRENOS",{"$f":"+D185+D186","v":{"v":0,"d":"0.00"}}]
[null,102020101,"TERRENOS"]
[null,102020102,"DERECHOS DE USO SOBRE TERRENOS SUBARRENDADOS"]
[null,1020202,"EDIFICIOS",{"$f":"+D188+D189","v":{"v":0,"d":"0.00"}}]
[null,102020201,"EDIFICIOS"]
[null,102020202,"DERECHOS DE USO SOBRE EDIFICIOS SUBARRENDADOS"]
[null,1020203,"(-) DEPRECIACION ACUMULADA DE PROPIEDADES DE INVERSIÓN"]
[null,1020204,"(-) DETERIORO ACUMULADO DE PROPIEDADES DE INVERSIÓN"]
[null,10203,"ACTIVOS BIOLOGICOS",{"$f":"SUM(D193:D198)","v":{"v":0,"d":"0.00"}}]
[null,1020301,"ANIMALES VIVOS EN CRECIMIENTO"]
[null,1020302,"ANIMALES VIVOS EN PRODUCCION"]
[null,1020303,"PLANTAS EN CRECIMIENTO"]
[null,1020304,"PLANTAS EN PRODUCCION"]
[null,1020305,"(-) DEPRECIACION ACUMULADA DE ACTIVOS BIOLÓGICOS"]
[null,1020306,"(-) DETERIORO ACUMULADO DE ACTIVOS BIOLOGÍCOS"]
[null,10204,"ACTIVO INTANGIBLE",{"$f":"SUM(D200:D206)","v":{"v":0,"d":"0.00"}}]
[null,1020401,"PLUSVALÍAS"]
[null,1020402,"MARCAS, PATENTES, DERECHOS DE LLAVE , CUOTAS PATRIMONIALES Y OTROS SIMILARES"]
[null,1020403,"CONCESIONES Y LICENCIAS"]
[null,1020404,"ACTIVOS DE EXPLORACION Y EXPLOTACION"]
[null,1020405,"(-) AMORTIZACIÓN ACUMULADA DE ACTIVOS INTANGIBLE"]
[null,1020406,"(-) DETERIORO ACUMULADO DE ACTIVO INTANGIBLE"]
[null,1020407," OTROS INTANGIBLES"]
[null,10205,"ACTIVOS POR IMPUESTOS DIFERIDOS"]
[null,10206,"ACTIVOS FINANCIEROS NO CORRIENTES",{"$f":"SUM(D209:D214)","v":{"v":0,"d":"0.00"}}]
[null,1020601,"ACTIVOS FINANCIEROS A VALOR RAZONABLE CON CAMBIOS EN OTRO RESULTADO INTEGRAL"]
[null,1020602,"(-) PROVISION POR DETERIORO DE ACTIVOS FINANCIEROS A VALOR RAZONABLE CON CAMBIOS EN OTRO RESULTADO INTEGRAL"]
[null,1020603,"ACTIVOS FINANCIEROS A COSTO AMORTIZADO"]
[null,1020604,"(-) PROVISIÓN POR DETERIORO DE ACTIVOS FINANCIEROS A COSTO AMORTIZADO"]
[null,1020605,"ACTIVOS FINANCIEROS A VALOR RAZONABLE CON CAMBIOS EN RESULTADOS"]
[null,1020606,"(-)PROVISIÓN POR DETERIORO DE ACTIVOS FINANCIEROS A VALOR RAZONABLE CON CAMBIOS EN RESULTADOS"]
[null,10207,"DERECHO DE USO POR ACTIVOS ARRENDADOS",{"$f":"SUM(D216:D218)","v":{"v":0,"d":"0.00"}}]
[null,1020701,"(-) DEPRECIACIÓN ACUMULADA DE ACTIVOS PROVENIENTES POR DERECHOS DE USO"]
[null,1020702,"(-) DETERIORO ACUMULADO DE ACTIVOS PROVENIENTES POR DERECHOS DE USO"]
[null,1020703,"DERECHO DE USO POR ACTIVOS ARRENDADOS"]
[null,10208,"OTROS ACTIVOS NO CORRIENTES",{"$f":"SUM(D220:D229)","v":{"v":0,"d":"0.00"}}]
[null,1020801,"DERECHOS FIDUCIARIOS"]
[null,1020802,"DEPÓSITOS EN GARANTÍA"]
[null,1020803,"DEPÓSITOS EN GARANTÍA POR OPERACIONES BURSÁTILES"]
[null,1020805,"ACCIONES DEL DEPÓSITO CENTRALIZADO DE VALORES"]
[null,1020806,"INVERSIONES SUBSIDIARIAS"]
[null,1020807,"INVERSIONES ASOCIADAS"]
[null,1020808,"INVERSIONES NEGOCIOS CONJUNTOS"]
[null,1020809,"OTRAS INVERSIONES"]
[null,1020810,"(-) PROVISIÓN VALUACIÓN DE INVERSIONES"]
[null,1020811,"OTROS ACTIVOS NO CORRIENTES"]
[null,10209,"DOCUMENTOS Y CUENTAS POR COBRAR NO RELACIONADOS",{"$f":"SUM(D231:D233)","v":{"v":0,"d":"0.00"}}]
[null,1020901,"CUENTAS Y DOCUMENTOS A COBRAR  A CLIENTES"]
[null,1020902,"CUENTAS Y DOCUMENTOS A COBRAR  A TERCEROS"]
[null,1020903,"OTRAS CUENTAS POR COBRAR NO RELACIONADAS"]
[null,10210,"DOCUMENTOS Y CUENTAS POR COBRAR RELACIONADOS",{"$f":"SUM(D235:D238)","v":{"v":0,"d":"0.00"}}]
[null,1021001,"POR COBRAR A ACCIONISTAS"]
[null,1021002,"POR COBRAR A COMPAÑÍAS RELACIONADAS"]
[null,1021003,"POR COBRAR A CLIENTES"]
[null,1021004,"OTRAS CUENTAS POR COBRAR RELACIONADAS"]
[null,2,"PASIVO",{"$f":"+D240+D305","v":{"v":0,"d":"0.00"}}]
[null,201,"PASIVO CORRIENTE",{"$f":"+D241+D242+D243+D252+D255+D258+D264+D272+D283+D284+D287+D288+D291+D304","v":{"v":0,"d":"0.00"}}]
[null,20101,"PASIVOS FINANCIEROS A VALOR RAZONABLE CON CAMBIOS EN RESULTADOS"]
[null,20102,"PASIVOS POR CONTRATOS DE ARRENDAMIENTO"]
[null,20103,"CUENTAS Y DOCUMENTOS POR PAGAR",{"$f":"+D244+D248","v":{"v":0,"d":"0.00"}}]
[null,2010301,"LOCALES",{"$f":"SUM(D245:D247)","v":{"v":0,"d":"0.00"}}]
[null,201030101,"PRÉSTAMOS"]
[null,201030102,"PROVEEDORES"]
[null,201030103,"OTRAS"]
[null,2010302,"DEL EXTERIOR",{"$f":"SUM(D249:D251)","v":{"v":0,"d":"0.00"}}]
[null,201030201,"PRÉSTAMOS"]
[null,201030202,"PROVEEDORES"]
[null,201030203,"OTRAS"]
[null,20104,"OBLIGACIONES CON INSTITUCIONES FINANCIERAS",{"$f":"SUM(D253:D254)","v":{"v":0,"d":"0.00"}}]
[null,2010401,"LOCALES"]
[null,2010402,"DEL EXTERIOR"]
[null,20105,"PROVISIONES",{"$f":"SUM(D256:D257)","v":{"v":0,"d":"0.00"}}]
[null,2010501,"LOCALES"]
[null,2010502,"DEL EXTERIOR"]
[null,20106,"PORCIÓN CORRIENTE DE VALORES EMITIDOS",{"$f":"SUM(D259:D263)","v":{"v":0,"d":"0.00"}}]
[null,2010601,"OBLIGACIONES"]
[null,2010602,"PAPEL COMERCIAL"]
[null,2010603,"VALORES DE TITULARIZACIÓN"]
[null,2010604,"OTROS"]
[null,2010605,"INTERESES POR PAGAR"]
[null,20107,"OTRAS OBLIGACIONES CORRIENTES",{"$f":"SUM(D265:D271)","v":{"v":0,"d":"0.00"}}]
[null,2010701,"CON LA ADMINISTRACIÓN TRIBUTARIA"]
[null,2010702,"IMPUESTO A LA RENTA POR PAGAR DEL EJERCICIO"]
[null,2010703,"CON EL IESS"]
[null,2010704,"POR BENEFICIOS DE LEY A EMPLEADOS"]
[null,2010705,"PARTICIPACIÓN TRABAJADORES POR PAGAR DEL EJERCICIO"]
[null,2010706,"DIVIDENDOS POR PAGAR"]
[null,2010707,"OTROS"]
[null,20108,"CUENTAS POR PAGAR A RELACIONADAS",{"$f":"+D273+D278","v":{"v":0,"d":"0.00"}}]
[null,2010801,"LOCALES",{"$f":"SUM(D274:D277)","v":{"v":0,"d":"0.00"}}]
[null,201080101,"PRÉSTAMOS DE ACCIONISTAS"]
[null,201080102,"PRÉSTAMOS DE COMPAÑÍAS RELACIONADAS"]
[null,201080103,"PROVEEDORES"]
[null,201080104,"OTROS"]
[null,2010802,"DEL EXTERIOR",{"$f":"SUM(D279:D282)","v":{"v":0,"d":"0.00"}}]
[null,201080201,"PRÉSTAMOS DE ACCIONISTAS"]
[null,201080202,"PRÉSTAMOS DE COMPAÑÍAS RELACIONADAS"]
[null,201080203,"PROVEEDORES"]
[null,201080204,"OTROS"]
[null,20109,"OTROS PASIVOS FINANCIEROS"]
[null,20110,"ANTICIPOS",{"$f":"SUM(D285:D286)","v":{"v":0,"d":"0.00"}}]
[null,2011001,"ANTICIPOS DE CLIENTES"]
[null,2011002,"OTROS ANTICIPOS RECIBIDOS"]
[null,20111,"PASIVOS DIRECTAMENTE ASOCIADOS CON LOS ACTIVOS NO CORRIENTES Y OPERACIONES DISCONTINUADAS"]
[null,20112,"PORCION CORRIENTE DE PROVISIONES POR BENEFICIOS A EMPLEADOS",{"$f":"SUM(D289:D290)","v":{"v":0,"d":"0.00"}}]
[null,2011201,"JUBILACION PATRONAL"]
[null,2011202,"OTROS BENEFICIOS PARA LOS EMPLEADOS"]
[null,20113,"OTROS PASIVOS CORRIENTES",{"$f":"SUM(D292:D303)","v":{"v":0,"d":"0.00"}}]
[null,2011301,"COMISIONES POR PAGAR"]
[null,2011302,"POR OPERACIONES BURSÁTILES"]
[null,2011303,"POR CUSTODIA"]
[null,2011304,"POR ADMINISTRACIÓN"]
[null,2011305,"OTRAS COMISIONES"]
[null,2011306,"SANCIONES Y MULTAS"]
[null,2011307,"INDEMNIZACIONES"]
[null,2011308,"OBLIGACIONES JUDICIALES"]
[null,2011309,"ACREEDORES POR INTERMEDIACIÓN"]
[null,2011310,"OBLIGACIÓN POR COMPROMISO DE RECOMPRA"]
[null,2011311,"POR CONTRATOS DE UNDERWRITING"]
[null,2011312,"OTROS"]
[null,20114,"PASIVOS FINANCIEROS AL COSTO AMORTIZADO"]
[null,202,"PASIVO NO CORRIENTE",{"$f":"+D306+D307+D316+D319+D330+D336+D339+D342+D343+D346","v":{"v":0,"d":"0.00"}}]
[null,20201,"PASIVOS POR CONTRATOS DE ARRENDAMIENTO"]
[null,20202,"CUENTAS Y DOCUMENTOS POR PAGAR",{"$f":"+D308+D312","v":{"v":0,"d":"0.00"}}]
[null,2020201,"LOCALES",{"$f":"SUM(D309:D311)","v":{"v":0,"d":"0.00"}}]
[null,202020101,"PRÉSTAMOS"]
[null,202020102,"PROVEEDORES"]
[null,202020103,"OTRAS"]
[null,2020202,"DEL EXTERIOR",{"$f":"SUM(D313:D315)","v":{"v":0,"d":"0.00"}}]
[null,202020201,"PRÉSTAMOS"]
[null,202020202,"PROVEEDORES"]
[null,202020203,"OTRAS"]
[null,20203,"OBLIGACIONES CON INSTITUCIONES FINANCIERAS",{"$f":"SUM(D317:D318)","v":{"v":0,"d":"0.00"}}]
[null,2020301,"LOCALES"]
[null,2020302,"DEL EXTERIOR"]
[null,20204,"CUENTAS POR PAGAR A RELACIONADAS",{"$f":"+D320+D325","v":{"v":0,"d":"0.00"}}]
[null,2020401,"LOCALES",{"$f":"SUM(D321:D324)","v":{"v":0,"d":"0.00"}}]
[null,202040101,"PRÉSTAMOS DE ACCIONISTAS"]
[null,202040102,"PRÉSTAMOS DE COMPAÑÍAS RELACIONADAS"]
[null,202040103,"PROVEEDORES"]
[null,202040104,"OTROS"]
[null,2020402,"DEL EXTERIOR",{"$f":"SUM(D326:D329)","v":{"v":0,"d":"0.00"}}]
[null,202040201,"PRÉSTAMOS DE ACCIONISTAS"]
[null,202040202,"PRÉSTAMOS DE COMPAÑÍAS RELACIONADAS"]
[null,202040203,"PROVEEDORES"]
[null,202040204,"OTROS"]
[null,20205,"PORCIÓN NO CORRIENTE DE VALORES EMITIDOS",{"$f":"SUM(D331:D335)","v":{"v":0,"d":"0.00"}}]
[null,2020501,"OBLIGACIONES"]
[null,2020502,"PAPEL COMERCIAL"]
[null,2020503,"VALORES DE TITULARIZACIÓN"]
[null,2020504,"OTROS"]
[null,2020505,"INTERESES POR PAGAR"]
[null,20206,"ANTICIPOS",{"$f":"SUM(D337:D338)","v":{"v":0,"d":"0.00"}}]
[null,2020601,"ANTICIPOS DE CLIENTES"]
[null,2020602,"OTROS ANTICIPOS RECIBIDOS"]
[null,20207,"PROVISIONES POR BENEFICIOS A EMPLEADOS",{"$f":"SUM(D340:D341)","v":{"v":0,"d":"0.00"}}]
[null,2020701,"JUBILACION PATRONAL"]
[null,2020702,"OTROS BENEFICIOS NO CORRIENTES PARA LOS EMPLEADOS"]
[null,20208,"OTRAS PROVISIONES"]
[null,20209,"PASIVO DIFERIDO",{"$f":"SUM(D344:D345)","v":{"v":0,"d":"0.00"}}]
[null,2020901,"INGRESOS DIFERIDOS"]
[null,2020902,"PASIVOS POR IMPUESTOS DIFERIDOS"]
[null,20210,"OTROS PASIVOS NO CORRIENTES"]
[null,3,"PATRIMONIO NETO",{"$f":"+D348+D378","v":{"v":0,"d":"0.00"}}]
[null,30,"PATRIMONIO NETO ATRIBUIBLE A LOS PROPIETARIOS DE LA CONTROLADORA",{"$f":"+D349+D357+D358+D359+D362+D367+D375","v":{"v":0,"d":"0.00"}}]
[null,301,"CAPITAL",{"$f":"SUM(D350:D354)","v":{"v":0,"d":"0.00"}}]
[null,30101," CAPITAL SUSCRITO O  ASIGNADO"]
[null,30102," (-) CAPITAL SUSCRITO NO PAGADO, ACCIONES EN TESORERÍA"]
[null,30103,"FONDO PATRIMONIAL"]
[null,30104,"PATRIMONIO DE LOS NEGOCIOS FIDUCIARIOS"]
[null,30105,"PATRIMONIO DE LOS FONDOS DE INVERSIÓN",{"$f":"SUM(D355:D356)","v":{"v":0,"d":"0.00"}}]
[null,3010501,"PATRIMONIO DEL FONDO ADMINISTRADO"]
[null,3010502,"PATRIMONIO DEL FONDO COLECTIVO"]
[null,302,"APORTES DE SOCIOS O ACCIONISTAS PARA FUTURA CAPITALIZACIÓN"]
[null,303,"PRIMA POR EMISIÓN PRIMARIA DE ACCIONES"]
[null,304,"RESERVAS",{"$f":"SUM(D360:D361)","v":{"v":0,"d":"0.00"}}]
[null,30401,"RESERVA LEGAL"]
[null,30402,"RESERVAS FACULTATIVA Y ESTATUTARIA"]
[null,305,"OTROS RESULTADOS INTEGRALES",{"$f":"SUM(D363:D366)","v":{"v":0,"d":"0.00"}}]
[null,30501,"SUPERAVIT DE ACTIVOS FINANCIEROS A VALOR RAZONABLE CON CAMBIOS EN OTRO RESULTADO INTEGRAL"]
[null,30502,"SUPERAVIT POR REVALUACIÓN DE PROPIEDADES, PLANTA Y EQUIPO"]
[null,30503,"SUPERAVIT POR REVALUACION DE ACTIVOS INTANGIBLES"]
[null,30504,"OTROS SUPERAVIT POR REVALUACION"]
[null,306,"RESULTADOS ACUMULADOS",{"$f":"SUM(D368:D374)","v":{"v":0,"d":"0.00"}}]
[null,30601,"GANANCIAS ACUMULADAS"]
[null,30602,"(-) PÉRDIDAS ACUMULADAS"]
[null,30603,"RESULTADOS ACUMULADOS PROVENIENTES DE LA ADOPCION POR PRIMERA VEZ DE LAS NIIF"]
[null,30604,"RESERVA DE CAPITAL"]
[null,30605,"RESERVA POR DONACIONES"]
[null,30606,"RESERVA POR VALUACIÓN"]
[null,30607,"SUPERÁVIT POR REVALUACIÓN DE INVERSIONES"]
[null,307,"RESULTADOS DEL EJERCICIO",{"$f":"SUM(D376:D377)","v":{"v":0,"d":"0.00"}}]
[null,30701,"GANANCIA NETA DEL PERIODO"]
[null,30702,"(-) PÉRDIDA NETA DEL PERIODO"]
[null,31,"PARTICIPACIÓN CONTROLADORA"]

{"sheet":"ERI","index":1,"n_rows":248,"n_cols":4,"rows_kept":248,"merged":[[0,1,0,3]]}
[null,"ESTADO DE RESULTADO INTEGRAL"]
[null,"CODIGO","NOMBRE DE LA CUENTA","VALOR"]
[null,401,"INGRESOS DE ACTIVIDADES ORDINARIAS",{"$f":"+D4+D5+D10+D11+D12+D13+D17+D18+D19+D40+D47+D48+D49+D50+D51","v":{"v":0,"d":"0.00"}}]
[null,40101,"VENTA DE BIENES"]
[null,40102,"PRESTACION DE SERVICIOS",{"$f":"SUM(D6:D9)","v":{"v":0,"d":"0.00"}}]
[null,4010201,"INGRESOS POR ASESORÍA"]
[null,4010202,"INGRESOS POR ESTRUCTURACIÓN DE OFERTA PÚBLICA DE VALORES"]
[null,4010203,"INGRESOS POR ESTRUCTURACIÓN DE NEGOCIOS FIDUCIARIOS"]
[null,4010204,"OTROS"]
[null,40103,"CONTRATOS DE CONSTRUCCION"]
[null,40104,"SUBVENCIONES DEL GOBIERNO"]
[null,40105,"REGALÍAS"]
[null,40106,"INTERESES",{"$f":"SUM(D14:D16)","v":{"v":0,"d":"0.00"}}]
[null,4010601,"INTERESES GENERADOS POR VENTAS A CREDITO"]
[null,4010602,"INTERESES Y RENDIMIENTOS FINANCIEROS"]
[null,4010603,"OTROS INTERESES GENERADOS"]
[null,40107,"DIVIDENDOS"]
[null,40108,"GANANCIA POR MEDICION A VALOR RAZONABLE  DE ACTIVOS BIOLOGICOS"]
[null,40109,"INGRESOS POR COMISIONES, PRESTACIÓN DE SERVICIOS, CUSTODIA, REGISTRO, COMPENSACIÓN Y LIQUIDACIÓN",{"$f":"+D20+D26+D35","v":{"v":0,"d":"0.00"}}]
[null,4010901,"COMISIONES GANADAS POR INTERMEDIACIÓN DE VALORES",{"$f":"SUM(D21:D25)","v":{"v":0,"d":"0.00"}}]
[null,401090101,"POR OPERACIONES BURSATILES"]
[null,401090103,"POR CONTRATOS DE UNDERWRITING"]
[null,401090104,"POR COMISIÓN EN OPERACIONES"]
[null,401090105,"POR INSCRIPCIONES"]
[null,401090106,"POR MANTENIMIENTO DE INSCRIPCIÓN"]
[null,4010902,"POR PRESTACIÓN DE SERVICIOS DE ADMINISTRACIÓN Y MANEJO",{"$f":"SUM(D27:D34)","v":{"v":0,"d":"0.00"}}]
[null,401090201,"PORTAFOLIO DE TERCEROS"]
[null,401090202,"FONDOS ADMINISTRADOS"]
[null,401090203,"FONDOS COLECTIVOS"]
[null,401090204,"TITULARIZACIÓN"]
[null,401090205,"FIDEICOMISOS MERCANTILES"]
[null,401090206,"ENCARGOS FIDUCIARIOS"]
[null,401090207,"POR CALIFICACION DE RIESGO"]
[null,401090208,"POR REPRESENTACION DE OBLIGACIONISTAS"]
[null,4010903,"CUSTODIA, REGISTRO, COMPENSACIÓN Y LIQUIDACIÓN",{"$f":"SUM(D36:D39)","v":{"v":0,"d":"0.00"}}]
[null,401090301,"CUSTODIA VALORES MATERIALIZADOS"]
[null,401090302,"CUSTODIA VALORES DESMATERIALIZADOS"]
[null,401090303,"COMPENSACIÓN Y LIQUIDACIÓN DE VALORES"]
[null,401090304,"OTROS"]
[null,40110,"INGRESOS  FINANCIEROS",{"$f":"SUM(D41:D46)","v":{"v":0,"d":"0.00"}}]
[null,4011001,"DIVIDENDOS"]
[null,4011002,"INTERESES FINANCIEROS"]
[null,4011003,"GANANCIA EN INVERSIONES EN ASOCIADAS / SUBSIDIARIAS Y OTRAS"]
[null,4011004,"VALUACION DE INSTRUMENTOS FINANCIEROS A VALOR RAZONABLE CON CAMBIO EN RESULTADOS"]
[null,4011005,"GANANCIA EN VENTA DE TITULOS VALORES"]
[null,4011006,"OTROS INGRESOS  FINANCIEROS"]
[null,40112,"(-) DESCUENTO EN VENTAS"]
[null,40113,"(-) DEVOLUCIONES EN VENTAS"]
[null,40114,"(-) BONIFICACIÓN EN PRODUCTO"]
[null,40115,"(-) OTRAS REBAJAS COMERCIALES"]
[null,40116,"UTILIDAD EN CAMBIO"]
[null,402,"GANANCIA BRUTA",{"$f":"+D3-D57","v":{"v":0,"d":"0.00"}}]
[null,403,"OTROS INGRESOS",{"$f":"SUM(D54:D56)","v":{"v":0,"d":"0.00"}}]
[null,40301,"GANANCIA EN VENTA DE PROPIEDAD, PLANTA Y EQUIPO"]
[null,40302,"GANANCIA EN VENTA DE ACTIVOS BIOLÓGICOS"]
[null,40303,"OTROS"]
[null,501,"COSTO DE VENTAS Y PRODUCCIÓN",{"$f":"+D58+D71+D74+D77+D86","v":{"v":0,"d":"0.00"}}]
[null,50101,"MATERIALES UTILIZADOS O PRODUCTOS VENDIDOS",{"$f":"SUM(D59:D70)","v":{"v":0,"d":"0.00"}}]
[null,5010101,"(+) INVENTARIO INICIAL DE BIENES NO PRODUCIDOS POR LA COMPAÑIA"]
[null,5010102,"(+) COMPRAS NETAS LOCALES DE BIENES NO PRODUCIDOS POR LA COMPAÑIA"]
[null,5010103,"(+) IMPORTACIONES DE BIENES NO PRODUCIDOS POR LA COMPAÑIA"]
[null,5010104,"(-) INVENTARIO FINAL DE BIENES NO PRODUCIDOS POR LA COMPAÑIA"]
[null,5010105,"(+) INVENTARIO INICIAL DE MATERIA PRIMA"]
[null,5010106,"(+) COMPRAS NETAS LOCALES DE MATERIA PRIMA"]
[null,5010107,"(+) IMPORTACIONES DE MATERIA PRIMA"]
[null,5010108,"(-) INVENTARIO FINAL DE MATERIA PRIMA"]
[null,5010109,"(+) INVENTARIO INICIAL DE PRODUCTOS EN PROCESO"]
[null,5010110,"(-) INVENTARIO FINAL DE PRODUCTOS EN PROCESO"]
[null,5010111,"(+) INVENTARIO INICIAL PRODUCTOS TERMINADOS"]
[null,5010112,"(-) INVENTARIO FINAL DE PRODUCTOS TERMINADOS"]
[null,50102,"(+) MANO DE OBRA DIRECTA",{"$f":"SUM(D72:D73)","v":{"v":0,"d":"0.00"}}]
[null,5010201,"SUELDOS Y BENEFICIOS SOCIALES"]
[null,5010202,"GASTOS PLANES DE BENEFICIOS A EMPLEADOS"]
[null,50103,"(+) MANO DE OBRA INDIRECTA",{"$f":"SUM(D75:D76)","v":{"v":0,"d":"0.00"}}]
[null,5010301,"SUELDOS Y BENEFICIOS SOCIALES"]
[null,5010302,"GASTO PLANES DE BENEFICIOS A EMPLEADOS"]
[null,50104,"(+) OTROS COSTOS INDIRECTOS DE FABRICACION",{"$f":"SUM(D78:D85)","v":{"v":0,"d":"0.00"}}]
[null,5010401,"DEPRECIACIÓN PROPIEDADES, PLANTA Y EQUIPO"]
[null,5010402,"DETERIORO O PERDIDAS DE ACTIVOS BIOLOGICOS"]
[null,5010403,"DETERIORO DE PROPIEDAD, PLANTA Y EQUIPO"]
[null,5010404,"EFECTO VALOR NETO DE REALIZACION DE INVENTARIOS"]
[null,5010405,"GASTO POR GARANTIAS EN VENTA DE PRODUCTOS O SERVICIOS"]
[null,5010406,"MANTENIMIENTO Y REPARACIONES"]
[null,5010407,"SUMINISTROS MATERIALES Y REPUESTOS"]
[null,5010408,"OTROS COSTOS DE PRODUCCIÓN"]
[null,50105,"COSTOS DE CONTRATOS DE CONSTRUCCIONES",{"$f":"+D87","v":{"v":0,"d":"0.00"}}]
[null,5010501,"COSTOS DE ACUERDO A PORCENTAJES O GRADOS DE TERMINACIÓN"]
[null,502,"GASTOS",{"$f":"+D89+D133+D178+D217","v":{"v":0,"d":"0.00"}}]
[null,50201,"GASTOS DE VENTA",{"$f":"SUM(D90:D109)+D113+D116+D124+D128+D129+D130+D131+D132","v":{"v":0,"d":"0.00"}}]
[null,5020101,"SUELDOS, SALARIOS Y DEMÁS REMUNERACIONES"]
[null,5020102,"APORTES A LA SEGURIDAD SOCIAL (INCLUIDO FONDO DE RESERVA)"]
[null,5020103,"BENEFICIOS SOCIALES E INDEMNIZACIONES"]
[null,5020104,"GASTO PLANES DE BENEFICIOS A EMPLEADOS"]
[null,5020105,"HONORARIOS, COMISIONES Y DIETAS A PERSONAS NATURALES"]
[null,5020106,"REMUNERACIONES A OTROS TRABAJADORES AUTÓNOMOS"]
[null,5020107,"HONORARIOS A EXTRANJEROS POR SERVICIOS OCASIONALES"]
[null,5020108,"MANTENIMIENTO Y REPARACIONES"]
[null,5020109,"ARRENDAMIENTO"]
[null,5020110,"COMISIONES"]
[null,5020111,"PROMOCIÓN Y PUBLICIDAD"]
[null,5020112,"COMBUSTIBLES"]
[null,5020113,"LUBRICANTES"]
[null,5020114,"SEGUROS Y REASEGUROS (PRIMAS Y CESIONES)"]
[null,5020115,"TRANSPORTE"]
[null,5020116,"GASTOS DE GESTIÓN (AGASAJOS A ACCIONISTAS, TRABAJADORES Y CLIENTES)"]
[null,5020117,"GASTOS DE VIAJE"]
[null,5020118,"AGUA, ENERGÍA, LUZ, Y TELECOMUNICACIONES"]
[null,5020119,"NOTARIOS Y REGISTRADORES DE LA PROPIEDAD O MERCANTILES"]
[null,5020120,"DEPRECIACIONES:",{"$f":"SUM(D110:D112)","v":{"v":0,"d":"0.00"}}]
[null,502012001,"PROPIEDADES, PLANTA Y EQUIPO"]
[null,502012002,"PROPIEDADES DE INVERSIÓN"]
[null,502012003,"ACTIVOS POR DERECHO DE USO"]
[null,5020121,"AMORTIZACIONES",{"$f":"SUM(D114:D115)","v":{"v":0,"d":"0.00"}}]
[null,502012101,"INTANGIBLES"]
[null,502012102,"OTROS ACTIVOS"]
[null,5020122,"GASTO DETERIORO",{"$f":"SUM(D117:D123)","v":{"v":0,"d":"0.00"}}]
[null,502012201,"PROPIEDADES, PLANTA Y EQUIPO"]
[null,502012202,"INVENTARIOS"]
[null,502012203,"INSTRUMENTOS FINANCIEROS"]
[null,502012204,"INTANGIBLES"]
[null,502012205,"CUENTAS POR COBRAR"]
[null,502012206,"OTROS ACTIVOS"]
[null,502012207,"DERECHOS DE USO POR ACTIVOS ARRENDADOS"]
[null,5020123,"GASTOS POR CANTIDADES ANORMALES DE UTILIZACION EN EL PROCESO DE PRODUCCIÓN:",{"$f":"SUM(D125:D127)","v":{"v":0,"d":"0.00"}}]
[null,502012301,"MANO DE OBRA"]
[null,502012302,"MATERIALES"]
[null,502012303,"COSTOS DE PRODUCCION"]
[null,5020124,"GASTO POR REESTRUCTURACION"]
[null,5020125,"VALOR NETO DE REALIZACION DE INVENTARIOS"]
[null,5020126,"GASTO IMPUESTO A LA RENTA (ACTIVOS Y PASIVOS DIFERIDOS)"]
[null,5020127,"SUMINISTROS Y MATERIALES"]
[null,5020128,"OTROS GASTOS"]
[null,50202,"GASTOS ADMINISTRATIVOS",{"$f":"SUM(D134:D154)+D158+D161+D169+SUM(D173:D177)","v":{"v":0,"d":"0.00"}}]
[null,5020201,"SUELDOS, SALARIOS Y DEMÁS REMUNERACIONES"]
[null,5020202,"APORTES A LA SEGURIDAD SOCIAL (INCLUIDO FONDO DE RESERVA)"]
[null,5020203,"BENEFICIOS SOCIALES E INDEMNIZACIONES"]
[null,5020204,"GASTO PLANES DE BENEFICIOS A EMPLEADOS"]
[null,5020205,"HONORARIOS, COMISIONES Y DIETAS A PERSONAS NATURALES"]
[null,5020206,"REMUNERACIONES A OTROS TRABAJADORES AUTÓNOMOS"]
[null,5020207,"HONORARIOS A EXTRANJEROS POR SERVICIOS OCASIONALES"]
[null,5020208,"MANTENIMIENTO Y REPARACIONES"]
[null,5020209,"ARRENDAMIENTO"]
[null,5020210,"COMISIONES"]
[null,5020211,"PROMOCIÓN Y PUBLICIDAD"]
[null,5020212,"COMBUSTIBLES"]
[null,5020213,"LUBRICANTES"]
[null,5020214,"SEGUROS Y REASEGUROS (PRIMAS Y CESIONES)"]
[null,5020215,"TRANSPORTE"]
[null,5020216,"GASTOS DE GESTIÓN (AGASAJOS A ACCIONISTAS, TRABAJADORES Y CLIENTES)"]
[null,5020217,"GASTOS DE VIAJE"]
[null,5020218,"AGUA, ENERGÍA, LUZ, Y TELECOMUNICACIONES"]
[null,5020219,"NOTARIOS Y REGISTRADORES DE LA PROPIEDAD O MERCANTILES"]
[null,5020220,"IMPUESTOS, CONTRIBUCIONES Y OTROS"]
[null,5020221,"DEPRECIACIONES",{"$f":"SUM(D155:D157)","v":{"v":0,"d":"0.00"}}]
[null,502022101,"PROPIEDADES, PLANTA Y EQUIPO"]
[null,502022102,"PROPIEDADES DE INVERSIÓN"]
[null,502022103,"ACTIVOS POR DERECHO DE USO"]
[null,5020222,"AMORTIZACIONES",{"$f":"SUM(D159:D160)","v":{"v":0,"d":"0.00"}}]
[null,502022201,"INTANGIBLES"]
[null,502022202,"OTROS ACTIVOS"]
[null,5020223,"GASTO DETERIORO:",{"$f":"SUM(D162:D168)","v":{"v":0,"d":"0.00"}}]
[null,502022301,"PROPIEDADES, PLANTA Y EQUIPO"]
[null,502022302,"INVENTARIOS"]
[null,502022303,"INSTRUMENTOS FINANCIEROS"]
[null,502022304,"INTANGIBLES"]
[null,502022305,"CUENTAS POR COBRAR"]
[null,502022306,"OTROS ACTIVOS"]
[null,502022307,"DERECHOS DE USO POR ACTIVOS ARRENDADOS"]
[null,5020224,"GASTOS POR CANTIDADES ANORMALES DE UTILIZACION EN EL PROCESO DE PRODUCCIÓN",{"$f":"SUM(D170:D172)","v":{"v":0,"d":"0.00"}}]
[null,502022401,"MANO DE OBRA"]
[null,502022402,"MATERIALES"]
[null,502022403,"COSTOS DE PRODUCCION"]
[null,5020225,"GASTO POR REESTRUCTURACION"]
[null,5020226,"VALOR NETO DE REALIZACION DE INVENTARIOS"]
[null,5020227,"GASTO IMPUESTO A LA RENTA (ACTIVOS Y PASIVOS DIFERIDOS)"]
[null,5020228,"SUMINISTROS Y MATERIALES"]
[null,5020229,"OTROS GASTOS"]
[null,50203,"GASTOS FINANCIEROS",{"$f":"+D179+D184+D191+D200+D205+D210+D211+D212+D213+D214+D215+D216","v":{"v":0,"d":"0.00"}}]
[null,5020301,"INTERESES",{"$f":"SUM(D180:D183)","v":{"v":0,"d":"0.00"}}]
[null,502030101,"INTERESES POR PRESTAMOS"]
[null,502030102,"INTERESES POR ARRENDAMIENTOS"]
[null,502030103,"INTERESES POR VALORES EMITIDOS"]
[null,502030104,"OTROS INTERESES"]
[null,5020302,"COMISIONES",{"$f":"+D185","v":{"v":0,"d":"0.00"}}]
[null,502030201,"COMISIONES PAGADAS POR INTERMEDIACIÓN DE VALORES:",{"$f":"SUM(D186:D190)","v":{"v":0,"d":"0.00"}}]
[null,50203020101,"POR OPERACIONES BURSATILES"]
[null,50203020103,"POR CONTRATOS DE UNDERWRITING"]
[null,50203020104,"POR COMISIÓN EN OPERACIONES"]
[null,50203020105,"POR INSCRIPCIONES"]
[null,50203020106,"POR MANTENIMIENTO DE INSCRIPCIÓN"]
[null,5020303,"POR PRESTACIÓN DE SERVICIOS DE ADMINISTRACIÓN Y MANEJO",{"$f":"SUM(D192:D199)","v":{"v":0,"d":"0.00"}}]
[null,502030301,"PORTAFOLIO DE TERCEROS"]
[null,502030302,"FONDOS ADMINISTRADOS"]
[null,502030303,"FONDOS COLECTIVOS"]
[null,502030304,"TITULARIZACIÓN"]
[null,502030305,"FIDEICOMISOS MERCANTILES"]
[null,502030306,"ENCARGOS FIDUCIARIOS"]
[null,502030307,"POR CALIFICACION DE RIESGO"]
[null,502030308,"POR REPRESENTACION DE OBLIGACIONISTAS"]
[null,5020304,"CUSTODIA, REGISTRO, COMPENSACIÓN Y LIQUIDACIÓN",{"$f":"SUM(D201:D204)","v":{"v":0,"d":"0.00"}}]
[null,502030401,"CUSTODIA VALORES MATERIALIZADOS"]
[null,502030402,"CUSTODIA VALORES DESMATERIALIZADOS"]
[null,502030403,"COMPENSACIÓN Y LIQUIDACIÓN DE VALORES"]
[null,502030404,"OTROS"]
[null,5020305,"GASTOS POR SERVICIOS DE ASESORIA Y ESTRUCTURACION",{"$f":"SUM(D206:D209)","v":{"v":0,"d":"0.00"}}]
[null,502030501," POR ASESORÍA"]
[null,502030502,"POR ESTRUCTURACIÓN DE OFERTA PÚBLICA DE VALORES"]
[null,502030503,"POR ESTRUCTURACIÓN DE NEGOCIOS FIDUCIARIOS"]
[null,502030504,"OTROS"]
[null,5020306,"GASTOS DE FINANCIAMIENTO DE ACTIVOS"]
[null,5020307,"DIFERENCIA EN CAMBIO"]
[null,5020308,"VALUACION DE INSTRUMENTOS FINANCIEROS A VALOR RAZONABLE CON CAMBIO EN RESULTADOS"]
[null,5020309,"PERDIDA EN VENTA DE TITULOS VALORES"]
[null,5020310,"PERDIDA EN VENTA DE PROPIEDAD, PLANTA Y EQUIPO"]
[null,5020311,"PERDIDA EN VENTA DE ACTIVOS BIOLOGICOS"]
[null,5020312,"OTROS GASTOS FINANCIEROS"]
[null,50204,"OTROS GASTOS",{"$f":"SUM(D218:D219)","v":{"v":0,"d":"0.00"}}]
[null,5020401,"PERDIDA EN INVERSIONES EN ASOCIADAS / SUBSIDIARIAS Y OTRAS"]
[null,5020402,"OTROS"]
[null,600,"GANANCIA (PÉRDIDA) ANTES DE 15% A TRABAJADORES E IMPUESTO A LA RENTA DE OPERACIONES CONTINUADAS",{"$f":"+D52+D53-D88","v":{"v":0,"d":"0.00"}}]
[null,601,"15% PARTICIPACIÓN TRABAJADORES"]
[null,602,"GANANCIA (PÉRDIDA) ANTES DE IMPUESTOS"]
[null,603,"IMPUESTO A LA RENTA CAUSADO"]
[null,604,"GANANCIA (PÉRDIDA) DE OPERACIONES CONTINUADAS ANTES DEL IMPUESTO DIFERIDO"]
[null,605,"(-) GASTO POR IMPUESTO DIFERIDO"]
[null,606,"(+) INGRESO POR IMPUESTO DIFERIDO"]
[null,607,"GANANCIA (PERDIDA) DE OPERACIONES CONTINUADAS"]
[null,700,"INGRESOS POR OPERACIONES DISCONTINUADAS"]
[null,701,"GASTOS POR OPERACIONES DISCONTINUADAS"]
[null,702,"GANANCIA (PÉRDIDA) ANTES DE 15% A TRABAJADORES E IMPUESTO A LA RENTA DE OPERACIONES DISCONTINUADAS"]
[null,703,"15% PARTICIPACIÓN TRABAJADORES"]
[null,704,"GANANCIA (PÉRDIDA) ANTES DE IMPUESTOS DE OPERACIONES DISCONTINUADAS"]
[null,705,"IMPUESTO A LA RENTA CAUSADO"]
[null,706,"GANANCIA (PÉRDIDA) DE OPERACIONES DISCONTINUADAS"]
[null,707,"GANANCIA (PÉRDIDA) NETA DEL PERIODO"]
[null,800,"OTRO RESULTADO INTEGRAL"]
[null,80001,"COMPONENTES DEL OTRO RESULTADO INTEGRAL"]
[null,80002,"DIFERENCIA DE CAMBIO POR CONVERSIÓN"]
[null,80003,"VALUACIÓN DE ACTIVOS FINANCIEROS A VALOR RAZONABLE CON CAMBIO EN OTRO RESULTADO INTEGRAL"]
[null,80004,"GANANCIAS POR REVALUACIÓN DE PROPIEDADES, PLANTA  Y EQUIPO"]
[null,80005,"GANANCIAS (PÉRDIDAS) ACTUARIALES POR PLANES DE BENEFICIOS DEFINIDOS"]
[null,80006,"REVERSION DEL DETERIORO (PÉRDIDA POR DETERIORO) DE UN ACTIVO REVALUADO"]
[null,80007,"PARTICIPACION DE OTRO RESULTADO INTEGRAL DE ASOCIADAS"]
[null,80008,"IMPUESTO SOBRE LAS GANANCIAS RELATIVO A OTRO RESULTADO INTEGRAL"]
[null,80009,"OTROS (DETALLAR EN NOTAS)"]
[null,801,"RESULTADO INTEGRAL TOTAL DEL AÑO"]
[null,80101,"PROPIETARIOS DE LA CONTROLADORA"]
[null,80102,"PARTICIPACION NO CONTROLADORA (INFORMATIVO)"]

{"sheet":"EFE","index":2,"n_rows":85,"n_cols":4,"rows_kept":85,"merged":[[0,1,0,3]]}
[null,"ESTADO FLUJO EFECTIVO"]
[null,"CODIGO","NOMBRE DE LA CUENTA","VALOR"]
[null,95,"INCREMENTO NETO (DISMINUCIÓN) EN EL EFECTIVO Y EQUIVALENTES AL EFECTIVO, ANTES DEL EFECTO DE LOS CAMBIOS EN LA TASA DE CAMBIO"]
[null,9501,"FLUJOS DE EFECTIVO PROCEDENTES DE (UTILIZADOS EN) ACTIVIDADES DE OPERACIÓN"]
[null,950101,"Clases de cobros por actividades de operación"]
[null,95010101,"Cobros procedentes de las ventas de bienes y prestación de servicios"]
[null,95010102,"Cobros procedentes de regalías, cuotas, comisiones y otros ingresos de actividades ordinarias"]
[null,95010103,"Cobros procedentes de contratos mantenidos con propósitos de intermediación o para negociar"]
[null,95010104,"Cobros procedentes de primas y prestaciones, anualidades y otros beneficios de pólizas suscritas"]
[null,95010105,"Otros cobros por actividades de operación"]
[null,950102,"Clases de pagos por actividades de operación"]
[null,95010201,"Pagos a proveedores por el suministro de bienes y servicios"]
[null,95010202,"Pagos procedentes de contratos mantenidos para intermediación o para negociar"]
[null,95010203,"Pagos a y por cuenta de los empleados"]
[null,95010204,"Pagos por primas y prestaciones, anualidades y otras obligaciones derivadas de las pólizas suscritas"]
[null,95010205,"Otros pagos por actividades de operación"]
[null,950103,"Dividendos pagados"]
[null,950104,"Dividendos recibidos"]
[null,950105,"Intereses pagados"]
[null,950106,"Intereses recibidos"]
[null,950107,"Impuestos a las ganancias pagados"]
[null,950108,"Otras entradas (salidas) de efectivo"]
[null,9502,"FLUJOS DE EFECTIVO PROCEDENTES DE (UTILIZADOS EN) ACTIVIDADES DE INVERSIÓN"]
[null,950201,"Efectivo procedentes de la venta de acciones en subsidiarias u otros negocios"]
[null,950202,"Efectivo utilizado para adquirir acciones en subsidiarias u otros negocios para tener el control"]
[null,950203,"Efectivo utilizado en la compra de participaciones no controladoras"]
[null,950204,"Otros cobros por la venta de acciones o instrumentos de deuda de otras entidades"]
[null,950205,"Otros pagos para adquirir acciones o instrumentos de deuda de otras entidades"]
[null,950206,"Otros cobros por la venta de participaciones en negocios conjuntos"]
[null,950207,"Otros pagos para adquirir participaciones en negocios conjuntos"]
[null,950208,"Importes procedentes por la venta de propiedades, planta y equipo"]
[null,950209,"Adquisiciones de propiedades, planta y equipo"]
[null,950210,"Importes procedentes de ventas de activos intangibles"]
[null,950211,"Compras de activos intangibles"]
[null,950212,"Importes procedentes de otros activos a largo plazo"]
[null,950213,"Compras de otros activos a largo plazo"]
[null,950214,"Importes procedentes de subvenciones del gobierno"]
[null,950215,"Anticipos de efectivo efectuados a terceros"]
[null,950216,"Cobros procedentes del reembolso de anticipos y préstamos concedidos a terceros"]
[null,950217,"Pagos derivados de contratos de futuro, a término, de opciones y de permuta financiera"]
[null,950218,"Cobros procedentes de contratos de futuro, a término, de opciones y de permuta financiera"]
[null,950219,"Dividendos recibidos"]
[null,950220,"Intereses recibidos"]
[null,950221,"Otras entradas (salidas) de efectivo"]
[null,9503,"FLUJOS DE EFECTIVO PROCEDENTES DE (UTILIZADOS EN) ACTIVIDADES DE FINANCIACIÓN"]
[null,950301,"Aporte en efectivo por aumento de capital"]
[null,950302,"Financiamiento por emisión de títulos valores"]
[null,950303,"Pagos por adquirir o rescatar las acciones de la entidad"]
[null,950304,"Financiación por préstamos a largo plazo"]
[null,950305,"Pagos de préstamos"]
[null,950306,"Pagos de pasivos por arrendamientos financieros"]
[null,950307,"Importes procedentes de subvenciones del gobierno"]
[null,950308,"Dividendos pagados"]
[null,950309,"Intereses recibidos"]
[null,950310,"Otras entradas (salidas) de efectivo"]
[null,9504,"EFECTOS DE LA VARIACION EN LA TASA DE CAMBIO SOBRE EL EFECTIVO Y EQUIVALENTES AL EFECTIVO"]
[null,950401,"Efectos de la variación en la tasa de cambio sobre el efectivo y equivalentes al efectivo"]
[null,9505,"INCREMENTO (DISMINUCIÓN) NETO DE EFECTIVO Y EQUIVALENTES AL EFECTIVO"]
[null,9506,"EFECTIVO Y EQUIVALENTES AL EFECTIVO AL PRINCIPIO DEL PERIODO"]
[null,9507,"EFECTIVO Y EQUIVALENTES AL EFECTIVO AL FINAL DEL PERIODO"]
[null,96,"GANANCIA (PÉRDIDA) ANTES DE 15% A TRABAJADORES E IMPUESTO A LA RENTA"]
[null,97,"AJUSTE POR PARTIDAS DISTINTAS AL EFECTIVO"]
[null,9701,"Ajustes por gasto de depreciación y amortización"]
[null,9702,"Ajustes por gastos por deterioro (reversiones por deterioro) reconocidas en los resultados del periodo"]
[null,9703,"Pérdida (ganancia) de moneda extranjera no realizada"]
[null,9704,"Pérdidas en cambio de moneda extranjera"]
[null,9705,"Ajustes por gastos en provisiones"]
[null,9706,"Ajuste por participaciones no controladoras"]
[null,9707,"Ajuste por pagos basados en acciones"]
[null,9708,"Ajustes por ganancias (pérdidas) en valor razonable"]
[null,9709,"Ajustes por gasto por impuesto a la renta"]
[null,9710,"Ajustes por gasto por participación trabajadores"]
[null,9711,"Otros ajustes por partidas distintas al efectivo"]
[null,98,"CAMBIOS EN ACTIVOS Y PASIVOS"]
[null,9801,"(Incremento) disminución en cuentas por cobrar clientes"]
[null,9802,"(Incremento) disminución en otras cuentas por cobrar"]
[null,9803,"(Incremento) disminución en anticipos de proveedores"]
[null,9804,"(Incremento) disminución en inventarios"]
[null,9805,"(Incremento) disminución en otros activos"]
[null,9806,"Incremento  (disminución) en cuentas por pagar comerciales"]
[null,9807,"Incremento  (disminución) en otras cuentas por pagar"]
[null,9808,"Incremento  (disminución) en beneficios empleados"]
[null,9809,"Incremento  (disminución) en anticipos de clientes"]
[null,9810,"Incremento  (disminución) en otros pasivos"]
[null,9820,"Flujos de efectivo netos procedentes de (utilizados en) actividades de operación"]

{"sheet":"ECP","index":3,"n_rows":322,"n_cols":5,"rows_kept":322,"merged":[[0,1,0,4]]}
[null,"ESTADO CAMBIO PATRIMONIO"]
[null,"CODIGO",null,"NOMBRE DE LA CUENTA","VALOR"]
[null,99,301,"SALDO AL FINAL DEL PERIODO / CAPITAL"]
[null,99,302,"SALDO AL FINAL DEL PERIODO / APORTES DE SOCIOS O ACCIONISTAS PARA FUTURA CAPITALIZACIÓN"]
[null,99,303,"SALDO AL FINAL DEL PERIODO / PRIMA POR EMISIÓN PRIMARIA DE ACCIONES"]
[null,99,30401,"SALDO AL FINAL DEL PERIODO / RESERVA LEGAL"]
[null,99,30402,"SALDO AL FINAL DEL PERIODO / RESERVAS FACULTATIVA Y ESTATUTARIA"]
[null,99,30501,"SALDO AL FINAL DEL PERIODO / SUPERAVIT DE ACTIVOS FINANCIEROS A VALOR RAZONABLE CON CAMBIOS EN OTRO RESULTADO"]
[null,99,30502,"SALDO AL FINAL DEL PERIODO / SUPERAVIT POR REVALUACIÓN DE PROPIEDADES, PLANTA Y EQUIPO"]
[null,99,30503,"SALDO AL FINAL DEL PERIODO / SUPERAVIT POR REVALUACION DE ACTIVOS INTANGIBLES"]
[null,99,30504,"SALDO AL FINAL DEL PERIODO / OTROS SUPERAVIT POR REVALUACION"]
[null,99,30601,"SALDO AL FINAL DEL PERIODO / GANANCIAS ACUMULADAS"]
[null,99,30602,"SALDO AL FINAL DEL PERIODO / (-) PÉRDIDAS ACUMULADAS"]
[null,99,30603,"SALDO AL FINAL DEL PERIODO / RESULTADOS ACUMULADOS PROVENIENTES DE LA ADOPCION POR PRIMERA VEZ DE LAS NIIF"]
[null,99,30604,"SALDO AL FINAL DEL PERÍODO / RESERVA DE CAPITAL"]
[null,99,30605,"SALDO AL FINAL DEL PERÍODO / RESERVA POR DONACIONES"]
[null,99,30606,"SALDO AL FINAL DEL PERÍODO / RESERVA POR VALUACIÓN"]
[null,99,30607,"SALDO AL FINAL DEL PERIODO / SUPERÁVIT POR REVALUACIÓN DE INVERSIONES"]
[null,99,30701,"SALDO AL FINAL DEL PERIODO / GANANCIA NETA DEL PERIODO"]
[null,99,30702,"SALDO AL FINAL DEL PERIODO / (-) PÉRDIDA NETA DEL PERIODO"]
[null,9901,301,"SALDO REEXPRESADO DEL PERIODO INMEDIATO ANTERIOR / CAPITAL"]
[null,9901,302,"SALDO REEXPRESADO DEL PERIODO INMEDIATO ANTERIOR / APORTES DE SOCIOS O ACCIONISTAS PARA FUTURA CAPITALIZACIÓN"]
[null,9901,303,"SALDO REEXPRESADO DEL PERIODO INMEDIATO ANTERIOR / PRIMA POR EMISIÓN PRIMARIA DE ACCIONES"]
[null,9901,30401,"SALDO REEXPRESADO DEL PERIODO INMEDIATO ANTERIOR / / RESERVA LEGAL"]
[null,9901,30402,"SALDO REEXPRESADO DEL PERIODO INMEDIATO ANTERIOR  / RESERVAS FACULTATIVA Y ESTATUTARIA"]
[null,9901,30501,"SALDO REEXPRESADO DEL PERIODO INMEDIATO ANTERIOR / SUPERAVIT DE ACTIVOS FINANCIEROS A VALOR RAZONABLE CON CAMBIOS EN OTRO RESULTADO"]
[null,9901,30502,"SALDO REEXPRESADO DEL PERIODO INMEDIATO ANTERIOR  / SUPERAVIT POR REVALUACIÓN DE PROPIEDADES, PLANTA Y EQUIPO"]
[null,9901,30503,"SALDO REEXPRESADO DEL PERIODO INMEDIATO ANTERIOR  / SUPERAVIT POR REVALUACION DE ACTIVOS INTANGIBLES"]
[null,9901,30504,"SALDO REEXPRESADO DEL PERIODO INMEDIATO ANTERIOR  / OTROS SUPERAVIT POR REVALUACION"]
[null,9901,30601,"SALDO REEXPRESADO DEL PERIODO INMEDIATO ANTERIOR / GANANCIAS ACUMULADAS"]
[null,9901,30602,"SALDO REEXPRESADO DEL PERIODO INMEDIATO ANTERIOR / (-) PÉRDIDAS ACUMULADAS"]
[null,9901,30603,"SALDO REEXPRESADO DEL PERIODO INMEDIATO ANTERIOR  / RESULTADOS ACUMULADOS PROVENIENTES DE LA ADOPCION POR PRIMERA VEZ DE LAS NIIF"]
[null,9901,30604,"SALDO REEXPRESADO DEL PERIODO INMEDIATO ANTERIOR / RESERVA DE CAPITAL"]
[null,9901,30605,"SALDO REEXPRESADO DEL PERIODO INMEDIATO ANTERIOR / RESERVA POR DONACIONES"]
[null,9901,30606,"SALDO REEXPRESADO DEL PERIODO INMEDIATO ANTERIOR  / RESERVA POR VALUACIÓN"]
[null,9901,30607,"SALDO REEXPRESADO DEL PERIODO INMEDIATO ANTERIOR  / SUPERÁVIT POR REVALUACIÓN DE INVERSIONES"]
[null,9901,30701,"SALDO REEXPRESADO DEL PERIODO INMEDIATO ANTERIOR  / GANANCIA NETA DEL PERIODO"]
[null,9901,30702,"SALDO REEXPRESADO DEL PERIODO INMEDIATO ANTERIOR  / (-) PÉRDIDA NETA DEL PERIODO"]
[null,990101,301,"SALDO DEL PERÍODO INMEDIATO ANTERIOR / CAPITAL"]
[null,990101,302,"SALDO DEL PERÍODO INMEDIATO ANTERIOR  / APORTES DE SOCIOS O ACCIONISTAS PARA FUTURA CAPITALIZACIÓN"]
[null,990101,303,"SALDO DEL PERÍODO INMEDIATO ANTERIOR  / PRIMA POR EMISIÓN PRIMARIA DE ACCIONES"]
[null,990101,30401,"SALDO DEL PERÍODO INMEDIATO ANTERIOR / RESERVA LEGAL"]
[null,990101,30402,"SALDO DEL PERÍODO INMEDIATO ANTERIOR  / RESERVAS FACULTATIVA Y ESTATUTARIA"]
[null,990101,30501,"SALDO DEL PERÍODO INMEDIATO ANTERIOR / SUPERAVIT DE ACTIVOS FINANCIEROS A VALOR RAZONABLE CON CAMBIOS EN OTRO RESULTADO"]
[null,990101,30502,"SALDO DEL PERÍODO INMEDIATO ANTERIOR  / SUPERAVIT POR REVALUACIÓN DE PROPIEDADES, PLANTA Y EQUIPO"]
[null,990101,30503,"SALDO DEL PERÍODO INMEDIATO ANTERIOR  / SUPERAVIT POR REVALUACION DE ACTIVOS INTANGIBLES"]
[null,990101,30504,"SALDO DEL PERÍODO INMEDIATO ANTERIOR  / OTROS SUPERAVIT POR REVALUACION"]
[null,990101,30601,"SALDO DEL PERÍODO INMEDIATO ANTERIOR / GANANCIAS ACUMULADAS"]
[null,990101,30602,"SALDO DEL PERÍODO INMEDIATO ANTERIOR / (-) PÉRDIDAS ACUMULADAS"]
[null,990101,30603,"SALDO DEL PERÍODO INMEDIATO ANTERIOR  / RESULTADOS ACUMULADOS PROVENIENTES DE LA ADOPCION POR PRIMERA VEZ DE LAS NIIF"]
[null,990101,30604,"SALDO DEL PERÍODO INMEDIATO ANTERIOR / RESERVA DE CAPITAL"]
[null,990101,30605,"SALDO DEL PERÍODO INMEDIATO ANTERIOR / RESERVA POR DONACIONES"]
[null,990101,30606,"SALDO DEL PERÍODO INMEDIATO ANTERIOR  / RESERVA POR VALUACIÓN"]
[null,990101,30607,"SALDO DEL PERÍODO INMEDIATO ANTERIOR  / SUPERÁVIT POR REVALUACIÓN DE INVERSIONES"]
[null,990101,30701,"SALDO DEL PERÍODO INMEDIATO ANTERIOR  / GANANCIA NETA DEL PERIODO"]
[null,990101,30702,"SALDO DEL PERÍODO INMEDIATO ANTERIOR  / (-) PÉRDIDA NETA DEL PERIODO"]
[null,990102,301,"CAMBIOS EN POLITICAS CONTABLES: / CAPITAL"]
[null,990102,302,"CAMBIOS EN POLITICAS CONTABLES:  / APORTES DE SOCIOS O ACCIONISTAS PARA FUTURA CAPITALIZACIÓN"]
[null,990102,303,"CAMBIOS EN POLITICAS CONTABLES:  / PRIMA POR EMISIÓN PRIMARIA DE ACCIONES"]
[null,990102,30401,"CAMBIOS EN POLITICAS CONTABLES: / RESERVA LEGAL"]
[null,990102,30402,"CAMBIOS EN POLITICAS CONTABLES:  / RESERVAS FACULTATIVA Y ESTATUTARIA"]
[null,990102,30501,"CAMBIOS EN POLITICAS CONTABLES: / SUPERAVIT DE ACTIVOS FINANCIEROS A VALOR RAZONABLE CON CAMBIOS EN OTRO RESULTADO"]
[null,990102,30502,"CAMBIOS EN POLITICAS CONTABLES:  / SUPERAVIT POR REVALUACIÓN DE PROPIEDADES, PLANTA Y EQUIPO"]
[null,990102,30503,"CAMBIOS EN POLITICAS CONTABLES:  / SUPERAVIT POR REVALUACION DE ACTIVOS INTANGIBLES"]
[null,990102,30504,"CAMBIOS EN POLITICAS CONTABLES:  / OTROS SUPERAVIT POR REVALUACION"]
[null,990102,30601,"CAMBIOS EN POLITICAS CONTABLES: / GANANCIAS ACUMULADAS"]
[null,990102,30602,"CAMBIOS EN POLITICAS CONTABLES: / (-) PÉRDIDAS ACUMULADAS"]
[null,990102,30603,"CAMBIOS EN POLITICAS CONTABLES:  / RESULTADOS ACUMULADOS PROVENIENTES DE LA ADOPCION POR PRIMERA VEZ DE LAS NIIF"]
[null,990102,30604,"CAMBIOS EN POLITICAS CONTABLES: / RESERVA DE CAPITAL"]
[null,990102,30605,"CAMBIOS EN POLITICAS CONTABLES: / RESERVA POR DONACIONES"]
[null,990102,30606,"CAMBIOS EN POLITICAS CONTABLES:  / RESERVA POR VALUACIÓN"]
[null,990102,30607,"CAMBIOS EN POLITICAS CONTABLES:  / SUPERÁVIT POR REVALUACIÓN DE INVERSIONES"]
[null,990102,30701,"CAMBIOS EN POLITICAS CONTABLES:  / GANANCIA NETA DEL PERIODO"]
[null,990102,30702,"CAMBIOS EN POLITICAS CONTABLES:  / (-) PÉRDIDA NETA DEL PERIODO"]
[null,990103,301,"CORRECCIÓN DE ERRORES / CAPITAL"]
[null,990103,302,"CORRECCIÓN DE ERRORES  / APORTES DE SOCIOS O ACCIONISTAS PARA FUTURA CAPITALIZACIÓN"]
[null,990103,303,"CORRECCIÓN DE ERRORES  / PRIMA POR EMISIÓN PRIMARIA DE ACCIONES"]
[null,990103,30401,"CORRECCIÓN DE ERRORES / RESERVA LEGAL"]
[null,990103,30402,"CORRECCIÓN DE ERRORES  / RESERVAS FACULTATIVA Y ESTATUTARIA"]
[null,990103,30501,"CORRECCIÓN DE ERRORES / SUPERAVIT DE ACTIVOS FINANCIEROS A VALOR RAZONABLE CON CAMBIOS EN OTRO RESULTADO"]
[null,990103,30502,"CORRECCIÓN DE ERRORES  / SUPERAVIT POR REVALUACIÓN DE PROPIEDADES, PLANTA Y EQUIPO"]
[null,990103,30503,"CORRECCIÓN DE ERRORES  / SUPERAVIT POR REVALUACION DE ACTIVOS INTANGIBLES"]
[null,990103,30504,"CORRECCIÓN DE ERRORES  / OTROS SUPERAVIT POR REVALUACION"]
[null,990103,30601,"CORRECCIÓN DE ERRORES / GANANCIAS ACUMULADAS"]
[null,990103,30602,"CORRECCIÓN DE ERRORES / (-) PÉRDIDAS ACUMULADAS"]
[null,990103,30603,"CORRECCIÓN DE ERRORES  / RESULTADOS ACUMULADOS PROVENIENTES DE LA ADOPCION POR PRIMERA VEZ DE LAS NIIF"]
[null,990103,30604,"CORRECCIÓN DE ERRORES / RESERVA DE CAPITAL"]
[null,990103,30605,"CORRECCIÓN DE ERRORES / RESERVA POR DONACIONES"]
[null,990103,30606,"CORRECCIÓN DE ERRORES  / RESERVA POR VALUACIÓN"]
[null,990103,30607,"CORRECCIÓN DE ERRORES  / SUPERÁVIT POR REVALUACIÓN DE INVERSIONES"]
[null,990103,30701,"CORRECCIÓN DE ERRORES  / GANANCIA NETA DEL PERIODO"]
[null,990103,30702,"CORRECCIÓN DE ERRORES  / (-) PÉRDIDA NETA DEL PERIODO"]
[null,9902,301,"CAMBIOS DEL AÑO EN EL PATRIMONIO: / CAPITAL"]
[null,9902,302,"CAMBIOS DEL AÑO EN EL PATRIMONIO:  / APORTES DE SOCIOS O ACCIONISTAS PARA FUTURA CAPITALIZACIÓN"]
[null,9902,303,"CAMBIOS DEL AÑO EN EL PATRIMONIO:  / PRIMA POR EMISIÓN PRIMARIA DE ACCIONES"]
[null,9902,30401,"CAMBIOS DEL AÑO EN EL PATRIMONIO: / RESERVA LEGAL"]
[null,9902,30402,"CAMBIOS DEL AÑO EN EL PATRIMONIO:  / RESERVAS FACULTATIVA Y ESTATUTARIA"]
[null,9902,30501,"CAMBIOS DEL AÑO EN EL PATRIMONIO: / SUPERAVIT DE ACTIVOS FINANCIEROS A VALOR RAZONABLE CON CAMBIOS EN OTRO RESULTADO"]
[null,9902,30502,"CAMBIOS DEL AÑO EN EL PATRIMONIO:  / SUPERAVIT POR REVALUACIÓN DE PROPIEDADES, PLANTA Y EQUIPO"]
[null,9902,30503,"CAMBIOS DEL AÑO EN EL PATRIMONIO:   / SUPERAVIT POR REVALUACION DE ACTIVOS INTANGIBLES"]
[null,9902,30504,"CAMBIOS DEL AÑO EN EL PATRIMONIO:  / OTROS SUPERAVIT POR REVALUACION"]
[null,9902,30601,"CAMBIOS DEL AÑO EN EL PATRIMONIO: / GANANCIAS ACUMULADAS"]
[null,9902,30602,"CAMBIOS DEL AÑO EN EL PATRIMONIO: / (-) PÉRDIDAS ACUMULADAS"]
[null,9902,30603,"CAMBIOS DEL AÑO EN EL PATRIMONIO:  / RESULTADOS ACUMULADOS PROVENIENTES DE LA ADOPCION POR PRIMERA VEZ DE LAS NIIF"]
[null,9902,30604,"CAMBIOS DEL AÑO EN EL PATRIMONIO: / RESERVA DE CAPITAL"]
[null,9902,30605,"CAMBIOS DEL AÑO EN EL PATRIMONIO: / RESERVA POR DONACIONES"]
[null,9902,30606,"CAMBIOS DEL AÑO EN EL PATRIMONIO:  / RESERVA POR VALUACIÓN"]
[null,9902,30607,"CAMBIOS DEL AÑO EN EL PATRIMONIO:  / SUPERÁVIT POR REVALUACIÓN DE INVERSIONES"]
[null,9902,30701,"CAMBIOS DEL AÑO EN EL PATRIMONIO:  / GANANCIA NETA DEL PERIODO"]
[null,9902,30702,"CAMBIOS DEL AÑO EN EL PATRIMONIO:  / (-) PÉRDIDA NETA DEL PERIODO"]
[null,990201,301,"Aumento (disminución) de capital social / CAPITAL"]
[null,990201,302,"Aumento (disminución) de capital social / APORTES DE SOCIOS O ACCIONISTAS PARA FUTURA CAPITALIZACIÓN"]
[null,990201,303,"Aumento (disminución) de capital social / PRIMA POR EMISIÓN PRIMARIA DE ACCIONES"]
[null,990201,30401,"Aumento (disminución) de capital social / RESERVA LEGAL"]
[null,990201,30402,"Aumento (disminución) de capital social  / RESERVAS FACULTATIVA Y ESTATUTARIA"]
[null,990201,30501,"Aumento (disminución) de capital social / SUPERAVIT DE ACTIVOS FINANCIEROS A VALOR RAZONABLE CON CAMBIOS EN OTRO RESULTADO"]
[null,990201,30502,"Aumento (disminución) de capital social  / SUPERAVIT POR REVALUACIÓN DE PROPIEDADES, PLANTA Y EQUIPO"]
[null,990201,30503,"Aumento (disminución) de capital social  / SUPERAVIT POR REVALUACION DE ACTIVOS INTANGIBLES"]
[null,990201,30504,"Aumento (disminución) de capital social  / OTROS SUPERAVIT POR REVALUACION"]
[null,990201,30601,"Aumento (disminución) de capital social / GANANCIAS ACUMULADAS"]
[null,990201,30602,"Aumento (disminución) de capital social / (-) PÉRDIDAS ACUMULADAS"]
[null,990201,30603,"Aumento (disminución) de capital social  / RESULTADOS ACUMULADOS PROVENIENTES DE LA ADOPCION POR PRIMERA VEZ DE LAS NIIF"]
[null,990201,30604,"Aumento (disminución) de capital social / RESERVA DE CAPITAL"]
[null,990201,30605,"Aumento (disminución) de capital social / RESERVA POR DONACIONES"]
[null,990201,30606,"Aumento (disminución) de capital social  / RESERVA POR VALUACIÓN"]
[null,990201,30607,"Aumento (disminución) de capital social  / SUPERÁVIT POR REVALUACIÓN DE INVERSIONES"]
[null,990201,30701,"Aumento (disminución) de capital social  / GANANCIA NETA DEL PERIODO"]
[null,990201,30702,"Aumento (disminución) de capital social  / (-) PÉRDIDA NETA DEL PERIODO"]
[null,990202,301,"Aportes para futuras capitalizaciones / CAPITAL"]
[null,990202,302,"Aportes para futuras capitalizaciones  / APORTES DE SOCIOS O ACCIONISTAS PARA FUTURA CAPITALIZACIÓN"]
[null,990202,303,"Aportes para futuras capitalizaciones  / PRIMA POR EMISIÓN PRIMARIA DE ACCIONES"]
[null,990202,30401,"Aportes para futuras capitalizaciones / RESERVA LEGAL"]
[null,990202,30402,"Aportes para futuras capitalizaciones  / RESERVAS FACULTATIVA Y ESTATUTARIA"]
[null,990202,30501,"Aportes para futuras capitalizaciones / SUPERAVIT DE ACTIVOS FINANCIEROS A VALOR RAZONABLE CON CAMBIOS EN OTRO RESULTADO"]
[null,990202,30502,"Aportes para futuras capitalizaciones  / SUPERAVIT POR REVALUACIÓN DE PROPIEDADES, PLANTA Y EQUIPO"]
[null,990202,30503,"Aportes para futuras capitalizaciones  / SUPERAVIT POR REVALUACION DE ACTIVOS INTANGIBLES"]
[null,990202,30504,"Aportes para futuras capitalizaciones  / OTROS SUPERAVIT POR REVALUACION"]
[null,990202,30601,"Aportes para futuras capitalizaciones / GANANCIAS ACUMULADAS"]
[null,990202,30602,"Aportes para futuras capitalizaciones / (-) PÉRDIDAS ACUMULADAS"]
[null,990202,30603,"Aportes para futuras capitalizaciones  / RESULTADOS ACUMULADOS PROVENIENTES DE LA ADOPCION POR PRIMERA VEZ DE LAS NIIF"]
[null,990202,30604,"Aportes para futuras capitalizaciones / RESERVA DE CAPITAL"]
[null,990202,30605,"Aportes para futuras capitalizaciones / RESERVA POR DONACIONES"]
[null,990202,30606,"Aportes para futuras capitalizaciones  / RESERVA POR VALUACIÓN"]
[null,990202,30607,"Aportes para futuras capitalizaciones  / SUPERÁVIT POR REVALUACIÓN DE INVERSIONES"]
[null,990202,30701,"Aportes para futuras capitalizaciones  / GANANCIA NETA DEL PERIODO"]
[null,990202,30702,"Aportes para futuras capitalizaciones  / (-) PÉRDIDA NETA DEL PERIODO"]
[null,990203,301,"Prima por emisión primaria de acciones / CAPITAL"]
[null,990203,302,"Prima por emisión primaria de acciones  / APORTES DE SOCIOS O ACCIONISTAS PARA FUTURA CAPITALIZACIÓN"]
[null,990203,303,"Prima por emisión primaria de acciones  / PRIMA POR EMISIÓN PRIMARIA DE ACCIONES"]
[null,990203,30401,"Prima por emisión primaria de acciones / RESERVA LEGAL"]
[null,990203,30402,"Prima por emisión primaria de acciones  / RESERVAS FACULTATIVA Y ESTATUTARIA"]
[null,990203,30501,"Prima por emisión primaria de acciones / SUPERAVIT DE ACTIVOS FINANCIEROS A VALOR RAZONABLE CON CAMBIOS EN OTRO RESULTADO"]
[null,990203,30502,"Prima por emisión primaria de acciones  / SUPERAVIT POR REVALUACIÓN DE PROPIEDADES, PLANTA Y EQUIPO"]
[null,990203,30503,"Prima por emisión primaria de acciones  / SUPERAVIT POR REVALUACION DE ACTIVOS INTANGIBLES"]
[null,990203,30504,"Prima por emisión primaria de acciones  / OTROS SUPERAVIT POR REVALUACION"]
[null,990203,30601,"Prima por emisión primaria de acciones / GANANCIAS ACUMULADAS"]
[null,990203,30602,"Prima por emisión primaria de acciones / (-) PÉRDIDAS ACUMULADAS"]
[null,990203,30603,"Prima por emisión primaria de acciones  / RESULTADOS ACUMULADOS PROVENIENTES DE LA ADOPCION POR PRIMERA VEZ DE LAS NIIF"]
[null,990203,30604,"Prima por emisión primaria de acciones / RESERVA DE CAPITAL"]
[null,990203,30605,"Prima por emisión primaria de acciones / RESERVA POR DONACIONES"]
[null,990203,30606,"Prima por emisión primaria de acciones  / RESERVA POR VALUACIÓN"]
[null,990203,30607,"Prima por emisión primaria de acciones  / SUPERÁVIT POR REVALUACIÓN DE INVERSIONES"]
[null,990203,30701,"Prima por emisión primaria de acciones  / GANANCIA NETA DEL PERIODO"]
[null,990203,30702,"Prima por emisión primaria de acciones  / (-) PÉRDIDA NETA DEL PERIODO"]
[null,990204,301,"Dividendos / CAPITAL"]
[null,990204,302,"Dividendos  / APORTES DE SOCIOS O ACCIONISTAS PARA FUTURA CAPITALIZACIÓN"]
[null,990204,303,"Dividendos  / PRIMA POR EMISIÓN PRIMARIA DE ACCIONES"]
[null,990204,30401,"Dividendos / RESERVA LEGAL"]
[null,990204,30402,"Dividendos  / RESERVAS FACULTATIVA Y ESTATUTARIA"]
[null,990204,30501,"Dividendos / SUPERAVIT DE ACTIVOS FINANCIEROS A VALOR RAZONABLE CON CAMBIOS EN OTRO RESULTADO"]
[null,990204,30502,"Dividendos  / SUPERAVIT POR REVALUACIÓN DE PROPIEDADES, PLANTA Y EQUIPO"]
[null,990204,30503,"Dividendos  / SUPERAVIT POR REVALUACIÓN DE PROPIEDADES, PLANTA Y EQUIPO"]
[null,990204,30504,"Dividendos  / OTROS SUPERAVIT POR REVALUACION"]
[null,990204,30601,"Dividendos / GANANCIAS ACUMULADAS"]
[null,990204,30602,"Dividendos / (-) PÉRDIDAS ACUMULADAS"]
[null,990204,30603,"Dividendos  / RESULTADOS ACUMULADOS PROVENIENTES DE LA ADOPCION POR PRIMERA VEZ DE LAS NIIF"]
[null,990204,30604,"Dividendos / RESERVA DE CAPITAL"]
[null,990204,30605,"Dividendos / RESERVA POR DONACIONES"]
[null,990204,30606,"Dividendos  / RESERVA POR VALUACIÓN"]
[null,990204,30607,"Dividendos  / SUPERÁVIT POR REVALUACIÓN DE INVERSIONES"]
[null,990204,30701,"Dividendos  / GANANCIA NETA DEL PERIODO"]
[null,990204,30702,"Dividendos  / (-) PÉRDIDA NETA DEL PERIODO"]
[null,990205,301,"Transferencia de Resultados a otras cuentas patrimoniales / CAPITAL"]
[null,990205,302,"Transferencia de Resultados a otras cuentas patrimoniales  / APORTES DE SOCIOS O ACCIONISTAS PARA FUTURA CAPITALIZACIÓN"]
[null,990205,303,"Transferencia de Resultados a otras cuentas patrimoniales  / PRIMA POR EMISIÓN PRIMARIA DE ACCIONES"]
[null,990205,30401,"Transferencia de Resultados a otras cuentas patrimoniales / RESERVA LEGAL"]
[null,990205,30402,"Transferencia de Resultados a otras cuentas patrimoniales  / RESERVAS FACULTATIVA Y ESTATUTARIA"]
[null,990205,30501,"Transferencia de Resultados a otras cuentas patrimoniales / SUPERAVIT DE ACTIVOS FINANCIEROS A VALOR RAZONABLE CON CAMBIOS EN OTRO RESULTADO"]
[null,990205,30502,"Transferencia de Resultados a otras cuentas patrimoniales  / SUPERAVIT POR REVALUACIÓN DE PROPIEDADES, PLANTA Y EQUIPO"]
[null,990205,30503,"Transferencia de Resultados a otras cuentas patrimoniales  / SUPERAVIT POR REVALUACION DE ACTIVOS INTANGIBLES"]
[null,990205,30504,"Transferencia de Resultados a otras cuentas patrimoniales  / OTROS SUPERAVIT POR REVALUACION"]
[null,990205,30601,"Transferencia de Resultados a otras cuentas patrimoniales / GANANCIAS ACUMULADAS"]
[null,990205,30602,"Transferencia de Resultados a otras cuentas patrimoniales / (-) PÉRDIDAS ACUMULADAS"]
[null,990205,30603,"Transferencia de Resultados a otras cuentas patrimoniales  / RESULTADOS ACUMULADOS PROVENIENTES DE LA ADOPCION POR PRIMERA VEZ DE LAS NIIF"]
[null,990205,30604,"Transferencia de Resultados a otras cuentas patrimoniales / RESERVA DE CAPITAL"]
[null,990205,30605,"Transferencia de Resultados a otras cuentas patrimoniales / RESERVA POR DONACIONES"]
[null,990205,30606,"Transferencia de Resultados a otras cuentas patrimoniales  / RESERVA POR VALUACIÓN"]
[null,990205,30607,"Transferencia de Resultados a otras cuentas patrimoniales  / SUPERÁVIT POR REVALUACIÓN DE INVERSIONES"]
[null,990205,30701,"Transferencia de Resultados a otras cuentas patrimoniales  / GANANCIA NETA DEL PERIODO"]
[null,990205,30702,"Transferencia de Resultados a otras cuentas patrimoniales  / (-) PÉRDIDA NETA DEL PERIODO"]
[null,990206,301,"Realización de la Reserva por Valuación de Activos Financieros Disponibles para la venta / CAPITAL"]
[null,990206,302,"Realización de la Reserva por Valuación de Activos Financieros Disponibles para la venta  / APORTES DE SOCIOS O ACCIONISTAS PARA FUTURA CAPITALIZACIÓN"]
[null,990206,303,"Realización de la Reserva por Valuación de Activos Financieros Disponibles para la venta  / PRIMA POR EMISIÓN PRIMARIA DE ACCIONES"]
[null,990206,30401,"Realización de la Reserva por Valuación de Activos Financieros Disponibles para la venta / RESERVA LEGAL"]
[null,990206,30402,"Realización de la Reserva por Valuación de Activos Financieros Disponibles para la venta  / RESERVAS FACULTATIVA Y ESTATUTARIA"]
[null,990206,30501,"Realización de la Reserva por Valuación de Activos Financieros Disponibles para la venta / SUPERAVIT DE ACTIVOS FINANCIEROS A VALOR RAZONABLE CON CAMBIOS EN OTRO RESULTADO"]
[null,990206,30502,"Realización de la Reserva por Valuación de Activos Financieros Disponibles para la venta  / SUPERAVIT POR REVALUACIÓN DE PROPIEDADES, PLANTA Y EQUIPO"]
[null,990206,30503,"Realización de la Reserva por Valuación de Activos Financieros Disponibles para la venta  / SUPERAVIT POR REVALUACION DE ACTIVOS INTANGIBLES"]
[null,990206,30504,"Realización de la Reserva por Valuación de Activos Financieros Disponibles para la venta  / OTROS SUPERAVIT POR REVALUACION"]
[null,990206,30601,"Realización de la Reserva por Valuación de Activos Financieros Disponibles para la venta / GANANCIAS ACUMULADAS"]
[null,990206,30602,"Realización de la Reserva por Valuación de Activos Financieros Disponibles para la venta / (-) PÉRDIDAS ACUMULADAS"]
[null,990206,30603,"Realización de la Reserva por Valuación de Activos Financieros Disponibles para la venta  / RESULTADOS ACUMULADOS PROVENIENTES DE LA ADOPCION POR PRIMERA VEZ DE LAS NIIF"]
[null,990206,30604,"Realización de la Reserva por Valuación de Activos Financieros Disponibles para la venta / RESERVA DE CAPITAL"]
[null,990206,30605,"Realización de la Reserva por Valuación de Activos Financieros Disponibles para la venta / RESERVA POR DONACIONES"]
[null,990206,30606,"Realización de la Reserva por Valuación de Activos Financieros Disponibles para la venta  / RESERVA POR VALUACIÓN"]
[null,990206,30607,"Realización de la Reserva por Valuación de Activos Financieros Disponibles para la venta  / SUPERÁVIT POR REVALUACIÓN DE INVERSIONES"]
[null,990206,30701,"Realización de la Reserva por Valuación de Activos Financieros Disponibles para la venta  / GANANCIA NETA DEL PERIODO"]
[null,990206,30702,"Realización de la Reserva por Valuación de Activos Financieros Disponibles para la venta  / (-) PÉRDIDA NETA DEL PERIODO"]
[null,990207,301,"Realización de la Reserva por Valuación de Propiedades, planta y equipo / CAPITAL"]
[null,990207,302,"Realización de la Reserva por Valuación de Propiedades, planta y equipo  / APORTES DE SOCIOS O ACCIONISTAS PARA FUTURA CAPITALIZACIÓN"]
[null,990207,303,"Realización de la Reserva por Valuación de Propiedades, planta y equipo  / PRIMA POR EMISIÓN PRIMARIA DE ACCIONES"]
[null,990207,30401,"Realización de la Reserva por Valuación de Propiedades, planta y equipo / RESERVA LEGAL"]
[null,990207,30402,"Realización de la Reserva por Valuación de Propiedades, planta y equipo  / RESERVAS FACULTATIVA Y ESTATUTARIA"]
[null,990207,30501,"Realización de la Reserva por Valuación de Propiedades, planta y equipo / SUPERAVIT DE ACTIVOS FINANCIEROS A VALOR RAZONABLE CON CAMBIOS EN OTRO RESULTADO"]
[null,990207,30502,"Realización de la Reserva por Valuación de Propiedades, planta y equipo  / SUPERAVIT POR REVALUACIÓN DE PROPIEDADES, PLANTA Y EQUIPO"]
[null,990207,30503,"Realización de la Reserva por Valuación de Propiedades, planta y equipo  / SUPERAVIT POR REVALUACION DE ACTIVOS INTANGIBLES"]
[null,990207,30504,"Realización de la Reserva por Valuación de Propiedades, planta y equipo  / OTROS SUPERAVIT POR REVALUACION"]
[null,990207,30601,"Realización de la Reserva por Valuación de Propiedades, planta y equipo / GANANCIAS ACUMULADAS"]
[null,990207,30602,"Realización de la Reserva por Valuación de Propiedades, planta y equipo / (-) PÉRDIDAS ACUMULADAS"]
[null,990207,30603,"Realización de la Reserva por Valuación de Propiedades, planta y equipo  / RESULTADOS ACUMULADOS PROVENIENTES DE LA ADOPCION POR PRIMERA VEZ DE LAS NIIF"]
[null,990207,30604,"Realización de la Reserva por Valuación de Propiedades, planta y equipo / RESERVA DE CAPITAL"]
[null,990207,30605,"Realización de la Reserva por Valuación de Propiedades, planta y equipo / RESERVA POR DONACIONES"]
[null,990207,30606,"Realización de la Reserva por Valuación de Propiedades, planta y equipo  / RESERVA POR VALUACIÓN"]
[null,990207,30607,"Realización de la Reserva por Valuación de Propiedades, planta y equipo  / SUPERÁVIT POR REVALUACIÓN DE INVERSIONES"]
[null,990207,30701,"Realización de la Reserva por Valuación de Propiedades, planta y equipo  / GANANCIA NETA DEL PERIODO"]
[null,990207,30702,"Realización de la Reserva por Valuación de Propiedades, planta y equipo  / (-) PÉRDIDA NETA DEL PERIODO"]
[null,990208,301,"Realización de la Reserva por Valuación de Activos Intangibles / CAPITAL"]
[null,990208,302,"Realización de la Reserva por Valuación de Activos Intangibles  / APORTES DE SOCIOS O ACCIONISTAS PARA FUTURA CAPITALIZACIÓN"]
[null,990208,303,"Realización de la Reserva por Valuación de Activos Intangibles  / PRIMA POR EMISIÓN PRIMARIA DE ACCIONES"]
[null,990208,30401,"Realización de la Reserva por Valuación de Activos Intangibles / RESERVA LEGAL"]
[null,990208,30402,"Realización de la Reserva por Valuación de Activos Intangibles  / RESERVAS FACULTATIVA Y ESTATUTARIA"]
[null,990208,30501,"Realización de la Reserva por Valuación de Activos Intangibles / SUPERAVIT DE ACTIVOS FINANCIEROS A VALOR RAZONABLE CON CAMBIOS EN OTRO RESULTADO"]
[null,990208,30502,"Realización de la Reserva por Valuación de Activos Intangibles  / SUPERAVIT POR REVALUACIÓN DE PROPIEDADES, PLANTA Y EQUIPO"]
[null,990208,30503,"Realización de la Reserva por Valuación de Activos Intangibles  / SUPERAVIT POR REVALUACION DE ACTIVOS INTANGIBLES"]
[null,990208,30504,"Realización de la Reserva por Valuación de Activos Intangibles  / OTROS SUPERAVIT POR REVALUACION"]
[null,990208,30601,"Realización de la Reserva por Valuación de Activos Intangibles / GANANCIAS ACUMULADAS"]
[null,990208,30602,"Realización de la Reserva por Valuación de Activos Intangibles / (-) PÉRDIDAS ACUMULADAS"]
[null,990208,30603,"Realización de la Reserva por Valuación de Activos Intangibles  / RESULTADOS ACUMULADOS PROVENIENTES DE LA ADOPCION POR PRIMERA VEZ DE LAS NIIF"]
[null,990208,30604,"Realización de la Reserva por Valuación de Activos Intangibles / RESERVA DE CAPITAL"]
[null,990208,30605,"Realización de la Reserva por Valuación de Activos Intangibles / RESERVA POR DONACIONES"]
[null,990208,30606,"Realización de la Reserva por Valuación de Activos Intangibles  / RESERVA POR VALUACIÓN"]
[null,990208,30607,"Realización de la Reserva por Valuación de Activos Intangibles  / SUPERÁVIT POR REVALUACIÓN DE INVERSIONES"]
[null,990208,30701,"Realización de la Reserva por Valuación de Activos Intangibles  / GANANCIA NETA DEL PERIODO"]
[null,990208,30702,"Realización de la Reserva por Valuación de Activos Intangibles  / (-) PÉRDIDA NETA DEL PERIODO"]
[null,990209,301,"Otros cambios (detallar) / CAPITAL"]
[null,990209,302,"Otros cambios (detallar)  / APORTES DE SOCIOS O ACCIONISTAS PARA FUTURA CAPITALIZACIÓN"]
[null,990209,303,"Otros cambios (detallar)  / PRIMA POR EMISIÓN PRIMARIA DE ACCIONES"]
[null,990209,30401,"Otros cambios (detallar) / RESERVA LEGAL"]
[null,990209,30402,"Otros cambios (detallar)  / RESERVAS FACULTATIVA Y ESTATUTARIA"]
[null,990209,30501,"Otros cambios (detallar) / SUPERAVIT DE ACTIVOS FINANCIEROS A VALOR RAZONABLE CON CAMBIOS EN OTRO RESULTADO"]
[null,990209,30502,"Otros cambios (detallar)  / SUPERAVIT POR REVALUACIÓN DE PROPIEDADES, PLANTA Y EQUIPO"]
[null,990209,30503,"Otros cambios (detallar)  / SUPERAVIT POR REVALUACION DE ACTIVOS INTANGIBLES"]
[null,990209,30504,"Otros cambios (detallar)  / OTROS SUPERAVIT POR REVALUACION"]
[null,990209,30601,"Otros cambios (detallar) / GANANCIAS ACUMULADAS"]
[null,990209,30602,"Otros cambios (detallar) / (-) PÉRDIDAS ACUMULADAS"]
[null,990209,30603,"Otros cambios (detallar)  / RESULTADOS ACUMULADOS PROVENIENTES DE LA ADOPCION POR PRIMERA VEZ DE LAS NIIF"]
[null,990209,30604,"Otros cambios (detallar) / RESERVA DE CAPITAL"]
[null,990209,30605,"Otros cambios (detallar) / RESERVA POR DONACIONES"]
[null,990209,30606,"Otros cambios (detallar)  / RESERVA POR VALUACIÓN"]
[null,990209,30607,"Otros cambios (detallar)  / SUPERÁVIT POR REVALUACIÓN DE INVERSIONES"]
[null,990209,30701,"Otros cambios (detallar)  / GANANCIA NETA DEL PERIODO"]
[null,990209,30702,"Otros cambios (detallar)  / (-) PÉRDIDA NETA DEL PERIODO"]
[null,990210,301,"Resultado Integral Total del Año (Ganancia o pérdida del ejercicio) / CAPITAL"]
[null,990210,302,"Resultado Integral Total del Año (Ganancia o pérdida del ejercicio)  / APORTES DE SOCIOS O ACCIONISTAS PARA FUTURA CAPITALIZACIÓN"]
[null,990210,303,"Resultado Integral Total del Año (Ganancia o pérdida del ejercicio)  / PRIMA POR EMISIÓN PRIMARIA DE ACCIONES"]
[null,990210,30401,"Resultado Integral Total del Año (Ganancia o pérdida del ejercicio) / RESERVA LEGAL"]
[null,990210,30402,"Resultado Integral Total del Año (Ganancia o pérdida del ejercicio)  / RESERVAS FACULTATIVA Y ESTATUTARIA"]
[null,990210,30501,"Resultado Integral Total del Año (Ganancia o pérdida del ejercicio) / SUPERAVIT DE ACTIVOS FINANCIEROS A VALOR RAZONABLE CON CAMBIOS EN OTRO RESULTADO"]
[null,990210,30502,"Resultado Integral Total del Año (Ganancia o pérdida del ejercicio)  / SUPERAVIT POR REVALUACIÓN DE PROPIEDADES, PLANTA Y EQUIPO"]
[null,990210,30503,"Resultado Integral Total del Año (Ganancia o pérdida del ejercicio)  / SUPERAVIT POR REVALUACION DE ACTIVOS INTANGIBLES"]
[null,990210,30504,"Resultado Integral Total del Año (Ganancia o pérdida del ejercicio)  / OTROS SUPERAVIT POR REVALUACION"]
[null,990210,30601,"Resultado Integral Total del Año (Ganancia o pérdida del ejercicio) / GANANCIAS ACUMULADAS"]
[null,990210,30602,"Resultado Integral Total del Año (Ganancia o pérdida del ejercicio) / (-) PÉRDIDAS ACUMULADAS"]
[null,990210,30603,"Resultado Integral Total del Año (Ganancia o pérdida del ejercicio)  / RESULTADOS ACUMULADOS PROVENIENTES DE LA ADOPCION POR PRIMERA VEZ DE LAS NIIF"]
[null,990210,30604,"Resultado Integral Total del Año (Ganancia o pérdida del ejercicio) / RESERVA DE CAPITAL"]
[null,990210,30605,"Resultado Integral Total del Año (Ganancia o pérdida del ejercicio) / RESERVA POR DONACIONES"]
[null,990210,30606,"Resultado Integral Total del Año (Ganancia o pérdida del ejercicio)  / RESERVA POR VALUACIÓN"]
[null,990210,30607,"Resultado Integral Total del Año (Ganancia o pérdida del ejercicio)  / SUPERÁVIT POR REVALUACIÓN DE INVERSIONES"]
[null,990210,30701,"Resultado Integral Total del Año (Ganancia o pérdida del ejercicio)  / GANANCIA NETA DEL PERIODO"]
[null,990210,30702,"Resultado Integral Total del Año (Ganancia o pérdida del ejercicio)  / (-) PÉRDIDA NETA DEL PERIODO"]
[null,99,30,"SALDO AL FINAL DEL PERÍODO"]
[null,99,31,"SALDO AL FINAL DEL PERÍODO"]
[null,9901,30,"SALDO REEXPRESADO DEL PERIODO INMEDIATO ANTERIOR"]
[null,9901,31,"SALDO REEXPRESADO DEL PERIODO INMEDIATO ANTERIOR"]
[null,9902,30,"CAMBIOS DEL AÑO EN EL PATRIMONIO:"]
[null,9902,31,"CAMBIOS DEL AÑO EN EL PATRIMONIO:"]
[null,990101,30,"SALDO DEL PERÍODO INMEDIATO ANTERIOR"]
[null,990101,31,"SALDO DEL PERÍODO INMEDIATO ANTERIOR"]
[null,990102,30,"CAMBIOS EN POLITICAS CONTABLES:"]
[null,990102,31,"CAMBIOS EN POLITICAS CONTABLES:"]
[null,990103,30,"CORRECCION DE ERRORES"]
[null,990103,31,"CORRECCION DE ERRORES"]
[null,990201,30,"Aumento (disminución) de capital social"]
[null,990201,31,"Aumento (disminución) de capital social"]
[null,990202,30,"Aportes para futuras capitalizaciones"]
[null,990202,31,"Aportes para futuras capitalizaciones"]
[null,990203,30,"Prima por emisión primaria de acciones"]
[null,990203,31,"Prima por emisión primaria de acciones"]
[null,990204,30,"Dividendos"]
[null,990204,31,"Dividendos"]
[null,990205,30,"Transferencia de Resultados a otras cuentas patrimoniales"]
[null,990205,31,"Transferencia de Resultados a otras cuentas patrimoniales"]
[null,990206,30,"Realización de la Reserva por Valuación de Activos Financieros Disponibles para la venta"]
[null,990206,31,"Realización de la Reserva por Valuación de Activos Financieros Disponibles para la venta"]
[null,990207,30,"Realización de la Reserva por Valuación de Propiedades, planta y equipo"]
[null,990207,31,"Realización de la Reserva por Valuación de Propiedades, planta y equipo"]
[null,990208,30,"Realización de la Reserva por Valuación de Activos Intangibles"]
[null,990208,31,"Realización de la Reserva por Valuación de Activos Intangibles"]
[null,990209,30,"Otros cambios (detallar)"]
[null,990209,31,"Otros cambios (detallar)"]
[null,990210,30,"Resultado Integral Total del Año (Ganancia o pérdida del ejercicio)"]
[null,990210,31,"Resultado Integral Total del Año (Ganancia o pérdida del ejercicio)"]